Workbook

Sheet Startseite
J4: Startseite
B5: Lohnsteuer-Rechner 2023
D9: Tabellenblätter | M9: Tabellenblatt | N9: 1
G10: Info
G11: =INDEX(Parameter_Intern!C5:D8,Startseite!N9,2) -> Hier machen Sie die Angaben zur Berechnung der LSt, der Sozialversicherungsbeiträge und zur Netto-Auszahlung. | M11: =+N9/2 -> 0.5 | N11: =+ROUND(N9/2,0) -> 1
M12: =IF(M11=N11,1,2) -> 2
D17: ="Bei einem Klick auf "&H17&" kommen Sie direkt zum entsprechenden Arbeitsblatt" -> Bei einem Klick auf Eingaben kommen Sie direkt zum entsprechenden Arbeitsblatt | H17: =+HYPERLINK(VLOOKUP($N$9,Parameter_Intern!$B$5:$E$30,4,FALSE),VLOOKUP($N$9,Parameter_Intern!$B$5:$E$30,2,FALSE)) -> Eingaben
B39: © 2023 by mediaforwork - ein Unternehmensbereich der Verlag für die Deutsche Wirtschaft AG
B40: Die Vervielfältigung, Verbreitung oder Veräußerung der Daten oder Texte ist unzulässig und
B41: ausdrücklich nur mit Genehmigung des Verlags gestattet.

Sheet Eingaben
N2: Eingaben
B3: Lohnsteuer-Rechner 2023 - Eingaben
D5: Steuerpflichtiger Arbeitslohn in Euro | K5: =+IF(ISNUMBER(H5),"","Wert eingeben") -> Wert eingeben | L5: =+H5 -> 0.00 | R5: Liste für Altersentlastungsbetrag | T5: Wahl | V5: =+IF(ISNUMBER(H5),1,0) -> 0
D6: Für welchen Zeitraum soll die LSt berechnet werden? | K6: =+IF(H6="","Wert eingeben","") -> Wert eingeben | L6: =+P6 -> 1 | P6: =+IF(H6="Jahr",1,IF(H6="Monat",2,IF(H6="Woche",3,IF(H6="Tag",4,1)))) -> 1 | R6: Geboren vor 1941 | S6: 1 | T6: =IF($H$18=R6,S6,"") ->  | V6: =+IF(H6="",0,1) -> 0
D7: Steuerklasse | K7: =+IF(ISNUMBER(H7),"","Wert eingeben") -> Wert eingeben | L7: 1 | P7: =+IF(ISNUMBER(H7),H7,1) -> 1 | R7: Geboren 1941 | S7: 2 | T7: =IF($H$18=R7,S7,"") ->  | V7: =+IF(H7="",0,1) -> 0
D8: Ehegattenfaktor (3 Nachkommastellen) nur für StKl IV | H8: 0.555 | K8: =IF(H7<>4,"",IF(ISNUMBER(H8),"","Wert eingeben")) ->  | L8: 0.555 | P8: =+IF(ISNUMBER(H8),H8,1) -> 0.555 | R8: Geboren 1942 | S8: 3 | V8: =+IF(AND(H7=4,H8=""),0,1) -> 1
D9: allgemeine oder besondere LSt-Tabelle | K9: =+IF(H9="","LSt-Tabelle wählen","") -> LSt-Tabelle wählen | L9: 0 | P9: =+IF(H9="Allgemeine LSt-Tabelle",0,IF(H9="Besondere LSt-Tabelle",1,0)) -> 0 | R9: Geboren 1943 | S9: 4 | V9: =+IF(H9="",0,1) -> 0
D10: Kinderfreibetrag | K10: =+IF(ISNUMBER(H10),"","Wert eingeben") -> Wert eingeben | L10: 0 | P10: =+IF(ISNUMBER(H10),H10,0) -> 0 | R10: Geboren 1944 | S10: 5 | V10: =+IF(ISNUMBER(H10),1,0) -> 0
D11: Kirchensteuer in Prozent | K11: =+IF(ISNUMBER(H11),"","Wert eingeben") -> Wert eingeben | L11: =+P11 -> 0 | P11: =+IF(ISNUMBER(H11),H11*100,0) -> 0 | R11: Geboren 1945 | S11: 6 | V11: =+IF(ISNUMBER(H11),1,0) -> 0
D12: Krankenversicherungssatz, bzw. PKV-Basisprämie in € | K12: =+IF(ISNUMBER(H12),"","Wert eingeben") -> Wert eingeben | L12: 15.5 | P12: =+IF(ISNUMBER(H12),H12,15.5) -> 15.5 | R12: Geboren 1946 | S12: 7 | V12: =+IF(ISNUMBER(H12),1,0) -> 0
D13: Krankenkassen-Zusatzbeitragsatz (d. Arbeitnehmers) | K13: =+IF(H13="","Wert eingeben","") -> Wert eingeben | P13: =+IF(H13="Ja",1,0) -> 0 | R13: Geboren 1947 | S13: 8 | V13: =+IF(H13="",0,1) -> 0
D14: Arbeitgeberzuschuss zur privaten KV | K14: =+IF(H14="","Ja oder Nein wählen","") -> Ja oder Nein wählen | P14: =+IF(H14="Ja",1,0) -> 0 | R14: Geboren 1948 | S14: 9 | V14: 0
D15: Anzahl Kinder für Pflegeversicherung | K15: =+IF(H15="","Anzahl Kinder für PV ?","") -> Anzahl Kinder für PV ? | L15: =+P15 -> 0 | P15: =+H15 -> 0 | R15: Geboren 1949 | S15: 10 | V15: 0
D16: Arbeitsstelle in Ostdeutschland | K16: =+IF(H16="","Ja oder Nein wählen","") -> Ja oder Nein wählen | L16: 0 | P16: =+IF(H16="Ja",1,0) -> 0 | R16: Geboren 1950 | S16: 11 | V16: 0
D17: =+IF(P16=1," Arbeitsort in Sachsen?"," Arbeitsort liegt nicht in Sachsen") -> Arbeitsort liegt nicht in Sachsen | K17: =+IF(AND(H16="Ja",H17=""),"Ja oder Nein wählen","") ->  | L17: 0 | P17: =+IF(P16=0,0,IF(H17="Ja",1,0)) -> 0 | R17: Geboren 1951 | S17: 12 | V17: 0
D18: Altersentlastungsbetrag | K18: =+IF(H18="","Geburtsjahr wählen","") -> Geburtsjahr wählen | L18: 0 | P18: =IF(ISERROR(VLOOKUP(H18,R6:S13,2,FALSE)),0,VLOOKUP(H18,R6:S13,2,FALSE)) -> 0 | R18: Geboren 1952 | S18: 13 | V18: 0
D19: (Jahres)Hinzurechnungen | K19: =+IF(ISNUMBER(H19),"","Wert eingeben") -> Wert eingeben | L19: 0.00 | P19: =+IF(ISNUMBER(H19),H19,0) -> 0 | R19: Geboren 1953 | S19: 14 | V19: =+IF(ISNUMBER(H19),1,0) -> 0
D20: (Jahres)lohnsteuerfreibetrag auf LSt-Karte | K20: =+IF(ISNUMBER(H20),"","Wert eingeben") -> Wert eingeben | L20: 0.00 | P20: =+IF(ISNUMBER(H20),H20,0) -> 0 | R20: Geboren 1954 | S20: 15 | V20: =+IF(ISNUMBER(H20),1,0) -> 0
D21: =IF(AND(AND(L8>0,L8<1),L7=4),"Ehegattenfaktor von " & L8 & " berücksichtigt","") ->  | R21: Geboren 1955 | S21: 16
R22: Geboren 1956 | S22: 17
R23: Geboren 1957 | S23: 18
R24: Geboren 1958 | S24: 19
R25: Geboren nach 1958 | S25: 20
T26: =IF(ISERROR(SUM(T6:T25)),0,SUM(T6:T25)) -> 0
W34: =15+IF(H7="",0,1) -> 15 | X34: =IF(ISERROR(IF(V35=W34,1,0)),0,IF(V35=W34,1,0)) -> 0
V35: =+SUM(V5:V20) -> 1
B37: << Startseite | E37: Beispiel | F37: Hilfe?
B39: © 2023 by mediaforwork - ein Unternehmensbereich der Verlag für die Deutsche Wirtschaft AG
B40: Die Vervielfältigung, Verbreitung oder Veräußerung der Daten oder Texte ist unzulässig und
B41: ausdrücklich nur mit Genehmigung des Verlags gestattet.

Sheet Berechnung
P2: =+Eingaben!X34 -> 0
N3: Berechnung
B4: Lohnsteuer-Rechner 2023 - Berechnung
D6: =+IF(P2=0,"Es fehlen noch Angaben im Arbeitblatt Eingaben","Alle erforderlichen Eingaben wurden gemacht") -> Es fehlen noch Angaben im Arbeitblatt Eingaben
D8: Steuerpflichtiger Arbeitslohn in Euro | H8: =IF($P$2=0,"",IF(Eingaben!H5="","",Eingaben!H5)) ->  | L8: =+H8 ->  | R8: =+L8 -> 
D9: Für welchen Zeitraum soll die LSt berechnet werden? | H9: =IF($P$2=0,"",IF(Eingaben!H6="","",Eingaben!H6)) ->  | L9: =+P9 -> 1 | P9: =+IF(H9="Jahr",1,IF(H9="Monat",2,IF(H9="Woche",3,IF(H9="Tag",4,1)))) -> 1 | R9: =+P9 -> 1
D11: Steuerklasse | H11: =IF($P$2=0,"",IF(Eingaben!H7="","",Eingaben!H7)) ->  | L11: 1 | P11: =+IF(ISNUMBER(H11),H11,1) -> 1 | R11: =+P11 -> 1
D12: Ehegattenfaktor (3 Nachkommastellen) nur für StKl IV | H12: =IF($P$2=0,"",IF(H11<>4,"",IF(Eingaben!H8="",0,Eingaben!H8))) ->  | L12: 0.000 | P12: =+IF(ISNUMBER(H12),H12,0) -> 0 | R12: =+P12 -> 0
D13: allgemeine oder besondere LSt-Tabelle | H13: =IF($P$2=0,"",IF(Eingaben!H9="","",Eingaben!H9)) ->  | I13: =+IF(Eingaben!I9="","",Eingaben!I9) ->  | L13: 0 | P13: =+IF(H13="Allgemeine LSt-Tabelle",0,IF(H13="Besondere LSt-Tabelle",1,0)) -> 0 | R13: =+P13 -> 0
D14: Kinderfreibetrag | H14: =IF($P$2=0,"",IF(Eingaben!H10="","",Eingaben!H10)) ->  | L14: 0 | P14: =+IF(ISNUMBER(H14),H14,0) -> 0 | R14: =+P14 -> 0
D15: Kirchensteuer | H15: =IF($P$2=0,"",IF(Eingaben!H11="","",Eingaben!H11)) ->  | L15: 0 | P15: =+IF(ISNUMBER(H15),H15,0) -> 0 | R15: =+P15*100 -> 0
D16: Krankenversicherungssatz, bzw. PKV-Basisprämie in € | H16: =IF($P$2=0,"",IF(Eingaben!H12="","",Eingaben!H12)) ->  | L16: 15.5 | P16: =+IF(ISNUMBER(H16),H16,15.5) -> 15.5 | R16: =P16 -> 15.5
D17: Krankenkassen-Zusatzbeitragsatz (d. Arbeitnehmers) | H17: =IF($P$2=0,"",IF(Eingaben!H13="","",IF(H16>20,0,Eingaben!H13))) ->  | L17: =+P17 ->  | P17: =+H17 ->  | R17: =+P17 -> 
D18: Arbeitgeberzuschuss zur privaten KV | H18: =IF($P$2=0,"",IF(Eingaben!H14="","",Eingaben!H14)) ->  | P18: =+IF(H18="Ja",1,0) -> 0
D19: Anzahl Kinder für Pflegeversicherung | H19: =IF($P$2=0,"",IF(Eingaben!H15="","",Eingaben!H15)) ->  | P19: =+H19 ->  | R19: =+P19 -> 
D20: Arbeitsstelle in Ostdeutschland | H20: =IF($P$2=0,"",IF(Eingaben!H16="","",Eingaben!H16)) ->  | L20: 0 | P20: =+IF(H20="Ja",1,0) -> 0 | R20: 0
D21: =+IF(P20=1," Arbeitsort in Sachsen?"," Arbeitsort liegt nicht in Sachsen") -> Arbeitsort liegt nicht in Sachsen | H21: =IF($P$2=0,"",IF(Eingaben!H17="","",Eingaben!H17)) ->  | L21: 0 | P21: =+IF(P20=0,0,IF(H21="Ja",1,0)) -> 0 | R21: 0
D22: Altersentlastungsbetrag | H22: =IF($P$2=0,"",IF(Eingaben!H18="","",Eingaben!H18)) ->  | I22: =+IF(Eingaben!I18="","",Eingaben!I18) ->  | L22: 0 | P22: =IF(ISERROR(VLOOKUP(H22,Eingaben!R6:S25,2,FALSE)),0,VLOOKUP(H22,Eingaben!R6:S25,2,FALSE)) -> 0 | R22: 0
D23: (Jahres)Hinzurechnungen | H23: =IF($P$2=0,"",IF(Eingaben!H19="","",Eingaben!H19)) ->  | L23: 0.00 | P23: =+IF(ISNUMBER(H23),H23,0) -> 0 | R23: 0
D24: (Jahres)lohnsteuerfreibetrag auf LSt-Karte | H24: =IF($P$2=0,"",IF(Eingaben!H20="","",Eingaben!H20)) ->  | L24: 0.00 | P24: =+IF(ISNUMBER(H24),H24,0) -> 0 | R24: 0
D25: =IF(AND(AND(L12>0,L12<1),L11=4),"Ehegattenfaktor von " & L12 & " berücksichtigt","") -> 
D26: Berechnungsergebnisse:
D28: Lohnsteuer | H28: =IF($P$2=0,"",LSTBerechnung2023_07!C54/100) -> 
D29: Solidaritätszuschlag | H29: =IF($P$2=0,"",LSTBerechnung2023_07!C66/100) -> 
D30: Kirchensteuer | H30: =IF($P$2=0,"",ROUNDDOWN(LSTBerechnung2023_07!C68*Berechnung!R15/10000,2)) -> 
D32: Rentenversicherung | H32: =IF($P$2=0,"",IF(P13=0,ROUND(IF(P9=1, IF(H8>LSTBerechnung2023_07!C9,LSTBerechnung2023_07!C9,H8),IF(P9=2, IF(H8>(LSTBerechnung2023_07!C9/12),(LSTBerechnung2023_07!C9/12),H8), IF(P9=3, IF(H8>(LSTBerechnung2023_07!C9/360*7),(LSTBerechnung2023_07!C9/360*7),H8), IF(H8>(LSTBerechnung2023_07!C9/360),(LSTBerechnung2023_07!C9/360),H8))))*0.093,2),0)) -> 
D33: Krankenversicherung | H33: =IF(ISERROR(IF(H16>20,IF(P18=0,H16*LSTBerechnung2023_07!$C$69,MAX(H16/2*LSTBerechnung2023_07!$C$69,(H16-(LSTBerechnung2023_07!G11*LSTBerechnung2023_07!F17/12))*LSTBerechnung2023_07!$C$69)),IF(H16=0,0,ROUND(IF(P9=1,IF(H8>LSTBerechnung2023_07!F17,LSTBerechnung2023_07!F17,H8),IF(P9=2,IF(H8>(LSTBerechnung2023_07!F17/12),(LSTBerechnung2023_07!F17/12),H8),IF(P9=3,IF(H8>(LSTBerechnung2023_07!F17/360*7),(LSTBerechnung2023_07!F17/360*7),H8),IF(H8>(LSTBerechnung2023_07!F17/360),(LSTBerechnung2023_07!F17/360),H8))))*((H16+H17)/2*0.01),2)))),"",IF(H16>20,IF(P18=0,H16*LSTBerechnung2023_07!$C$69,MAX(H16/2*LSTBerechnung2023_07!$C$69,(H16-(LSTBerechnung2023_07!G11*LSTBerechnung2023_07!F17/12))*LSTBerechnung2023_07!$C$69)),IF(H16=0,0,ROUND(IF(P9=1,IF(H8>LSTBerechnung2023_07!F17,LSTBerechnung2023_07!F17,H8),IF(P9=2,IF(H8>(LSTBerechnung2023_07!F17/12),(LSTBerechnung2023_07!F17/12),H8),IF(P9=3,IF(H8>(LSTBerechnung2023_07!F17/360*7),(LSTBerechnung2023_07!F17/360*7),H8),IF(H8>(LSTBerechnung2023_07!F17/360),(LSTBerechnung2023_07!F17/360),H8))))*((H16+H17)/2*0.01),2)))) -> 
D34: Pflegeversicherung | H34: =IF($P$2=0,"",IF(P16>20,0,IF(P16=0,0,ROUND(IF(P9=1,IF(H8>LSTBerechnung2023_07!F17,LSTBerechnung2023_07!F17,H8),IF(P9=2,IF(H8>(LSTBerechnung2023_07!F17/12),(LSTBerechnung2023_07!F17/12),H8),IF(P9=3,IF(H8>(LSTBerechnung2023_07!F17/360*7),(LSTBerechnung2023_07!F17/360*7),H8),IF(H8>(LSTBerechnung2023_07!F17/360),(LSTBerechnung2023_07!F17/360),H8)))),2)))*LSTBerechnung2023_07!C11) -> 
D35: Arbeitslosenversicherung | H35: =IF($P$2=0,"",IF(P13=0,ROUND(IF(P9=1,IF(H8>LSTBerechnung2023_07!C9,LSTBerechnung2023_07!C9,H8),IF(P9=2,IF(H8>(LSTBerechnung2023_07!C9/12),(LSTBerechnung2023_07!C9/12),H8),IF(P9=3,IF(H8>(LSTBerechnung2023_07!C9/360*7),(LSTBerechnung2023_07!C9/360*7),H8),IF(H8>(LSTBerechnung2023_07!C9/360),(LSTBerechnung2023_07!C9/360),H8))))*LSTBerechnung2023_07!G6,2),0)) -> 
D37: Abzüge | H37: =IF($P$2=0,"",SUM(H28:H35)) -> 
D38: Nettolohn | H38: =IF(H8="","",L8-H37) -> 
B41: << Startseite | E41: Beispiel | F41: Hilfe?
B43: © 2023 by mediaforwork - ein Unternehmensbereich der Verlag für die Deutsche Wirtschaft AG
B44: Die Vervielfältigung, Verbreitung oder Veräußerung der Daten oder Texte ist unzulässig und
B45: ausdrücklich nur mit Genehmigung des Verlags gestattet.

Sheet Beispiel
N2: Beispiel
P6: 2
P7: Ja
P8: 1
P9: 0.907
P10: 0
P11: 0
P12: 9 | R12: Liste für Altersentlastungsbetrag
P13: 15.5 | R13: Geboren vor 1941 | S13: 1
P14: 1 | R14: Geboren 1941 | S14: 2
P15: 0 | R15: Geboren 1942 | S15: 3
P16: 0 | R16: Geboren 1943 | S16: 4
P17: 2 | R17: Geboren 1944 | S17: 5
P18: 0 | R18: Geboren 1945 | S18: 6
P19: 0 | R19: Geboren 1946 | S19: 7
R20: Geboren nach 1946 | S20: 0
B63: << Startseite | E63: Hilfe?
B65: © 2023 by mediaforwork - ein Unternehmensbereich der Verlag für die Deutsche Wirtschaft AG
B66: Die Vervielfältigung, Verbreitung oder Veräußerung der Daten oder Texte ist unzulässig und
B67: ausdrücklich nur mit Genehmigung des Verlags gestattet.

Sheet Parameter_Intern (hidden)
B4: Nr | C4: Tabellenblatt | D4: Hinweise | E4: Hyperlink
B5: 1 | C5: Eingaben | D5: Hier machen Sie die Angaben zur Berechnung der LSt, der Sozialversicherungsbeiträge und zur Netto-Auszahlung. | E5: #Eingaben!B3
B6: 2 | C6: Berechnung | D6: Hier werden Ihnen die Ergebnisse der Berechnung angezeigt. | E6: #Berechnung!B3
B7: 3 | C7: Beispiel | D7: Hier finden Sie ein Beispiel für den LSt-Rechner. | E7: #Beispiel!B3
B8: 4 | C8: Hilfe | D8: Hier finden Sie nähere Informationen über die Anwendung. | E8: #Hilfe!B3
B33: © BWRmed!a, ein Unternehmensbereich der VNR Verlag für die Deutsche Wirtschaft AG - HRexperten24.de
B34: Die Vervielfältigung, Verbreitung oder Veräußerung der Daten oder Texte ist unzulässig und
B35: ausdrücklich nur mit Genehmigung des Verlags gestattet.

Sheet Hilfe
F2: Hilfe
B3: Lohnsteuer-Rechner 2023 - Hilfe
D5: Allgemeine Hinweise
D9: Hinweise zum Lohnsteuer-Rechner
B16: << Starseite
B18: © 2023 by mediaforwork - ein Unternehmensbereich der Verlag für die Deutsche Wirtschaft AG
B19: Die Vervielfältigung, Verbreitung oder Veräußerung der Daten oder Texte ist unzulässig und
B20: ausdrücklich nur mit Genehmigung des Verlags gestattet.

Sheet LSTBerechnung2023_07 (hidden)
A1: LST | B1: 2023 | E1: ="SOZ-VS-BEITRAGSSÄTZE "&BearbJahr -> SOZ-VS-BEITRAGSSÄTZE 2023 | I1: Altersentlastungsbetrag | O1: Pflegeversicherung | Q1: Kinder | R1: AN | S1: AG | T1: AN Sachsen | U1: AN Sachsen
A2: MPARA | B2: ZKF | C2: =IF(Berechnung!P11>4,0,Berechnung!P14) -> 0 | E2: Bezeichnung | F2: SATZ | G2: Berechnet | I2: Geburtsjahr | J2: Jahr | K2: Nummer | L2: TAB4 | M2: TAB5 | O2: Mitglieder ohne Kinder | Q2: 0 | R2: 2.30% | S2: 1.70% | T2: 2.80% | U2: 1.20%
B3: LZZ | C3: =Berechnung!P9 -> 1 | E3: KVSATZ | F3: 14.600% | G3: =F3/2+F4 -> 7.300% | K3: 0 | L3: 0 | M3: 0 | O3: Mitglieder mit 1 Kind | Q3: 1 | R3: 1.70% | S3: 1.70% | T3: 2.20% | U3: 1.20%
B4: KRV | C4: =Berechnung!P13 -> 0 | E4: KV_Zusatz | F4: =Eingaben!H13/100 -> 0.00% | G4: =F4/2+0.07 -> 7.000% | I4: vor 1941 | J4: bis 2005 | K4: 1 | L4: 0.400 | M4: 1900 | O4: Mitglieder mit 2 Kindern | Q4: 2 | R4: 1.45% | S4: 1.70% | T4: 1.95% | U4: 1.20%
B5: ZRE4J | C5: =ROUNDDOWN(IF(C3=1,Berechnung!H8*100,IF(C3=2,(Berechnung!H8*100)*12,IF(C3=3,((Berechnung!H8*100)*360)/7,(Berechnung!H8*100)*360))),2) ->  | E5: RV_Satz | F5: 18.60% | G5: =F5/2 -> 9.300% | I5: 1941 | J5: 2006 | K5: 2 | L5: 0.384 | M5: 1824 | O5: Mitglieder mit 3 Kindern | Q5: 3 | R5: 1.20% | S5: 1.70% | T5: 1.70% | U5: 1.20%
B6: STKL | C6: =+Berechnung!P11 -> 1 | E6: AV_Satz | F6: 2.60% | G6: =F6/2 -> 1.300% | I6: 1942 | J6: 2007 | K6: 3 | L6: 0.368 | M6: 1748 | O6: Mitglieder mit 4 Kindern | Q6: 4 | R6: 0.95% | S6: 1.70% | T6: 1.45% | U6: 1.20%
B7: JLHINZU | C7: =IF(C6=6,0,Berechnung!P23*100) -> 0 | E7: PV_Satz | F7: =+SUM(Q12:Q13) -> 4.00% | G7: =+Q12 -> 2.300% | H7: ohne / mit Kind | I7: 1943 | J7: 2008 | K7: 4 | L7: 0.352 | M7: 1672 | O7: Mitglieder mit 5 und mehr Kindern | Q7: 5 | R7: 0.70% | S7: 1.70% | T7: 1.20% | U7: 1.20%
B8: JLFREIB | C8: =Berechnung!P24*100 -> 0 | E8: PV_Satz Sachsen | F8: =+Q12 -> 2.300% | I8: 1944 | J8: 2009 | K8: 5 | L8: 0.336 | M8: 1596
B9: BBGRV | C9: =IF(Berechnung!P20=0,F15,F16) -> 87,600 | E9: PV_Satz Sachsen | F9: 0.000% | I9: 1945 | J9: 2010 | K9: 6 | L9: 0.320 | M9: 1520 | O9: Anzahl Kinder für Pflegeversicherung | Q9: =IF(ISNUMBER(Berechnung!P19),Berechnung!P19,0) -> 0
B10: PKV | C10: =IF(Eingaben!H12>20,MAX($C$31,ROUNDDOWN(Eingaben!H12*12,2)-IF(Eingaben!P14=1,IF(Eingaben!P16=1,SUM(F11,F7,-F8),SUM(F11,F7/2))*MIN(C5/100,F17),0)),0) -> 0 | E10: KV ZUSATZ Schnitt | F10: 1.600% | I10: 1946 | J10: 2011 | K10: 7 | L10: 0.304 | M10: 1444 | O10: Arbeitsort in Sachsen | Q10: =IF(ISNUMBER(Berechnung!P21),Berechnung!P21,0) -> 0
B11: PV% | C11: =+Q12 -> 0.02300 | E11: KVSATZ AG | F11: 7.80% | G11: =F3/2+F7-G7+F10/2 -> 9.800% | H11: KV plus PV AG | I11: 1947 | J11: 2012 | K11: 8 | L11: 0.288 | M11: 1368
B12: FAKTOR F | C12: =IF(OR(OR(Berechnung!P12=0,Berechnung!P12>1),Berechnung!P11<>4),1,Berechnung!P12) -> 1.00 | I12: 1948 | J12: 2013 | K12: 9 | L12: 0.272 | M12: 1292 | O12: Wert für Pflegeversicherung - AN | Q12: =+IF(Q10=0,VLOOKUP(Q9,Q2:R7,2,FALSE),VLOOKUP(Q9,Q2:T7,4,FALSE)) -> 2.30%
A13: MRE4ALTE | B13: TAB4 | C13: =VLOOKUP(Eingaben!T26,K3:L23,2,FALSE) -> 0 | E13: BMF - PAP - ANGABEN | I13: 1949 | J13: 2014 | K13: 10 | L13: 0.256 | M13: 1216 | O13: Wert für Pflegeversicherung - AG | Q13: =+IF(Q10=0,VLOOKUP(Q9,Q2:S7,3,FALSE),VLOOKUP(Q9,Q2:U7,5,FALSE)) -> 1.70%
B14: TAB5 | C14: =VLOOKUP(Eingaben!T26,K3:M23,3,FALSE)*100 -> 0 | E14: Name | F14: WERT | G14: Bereich | I14: 1950 | J14: 2015 | K14: 11 | L14: 0.240 | M14: 1140
B15: ALTEANTEIL | C15: =C14 -> 0 | E15: BBGRV | F15: 87,600 | G15: MPARA | I15: 1951 | J15: 2016 | K15: 12 | L15: 0.224 | M15: 1064
B16: ALTE | C16: =IF(Berechnung!P22=0,0,IF((C5*C13)>C15,C15,C5*C13)) -> 0 | E16: BBGRV | F16: 85,200 | I16: 1952 | J16: 2017 | K16: 13 | L16: 0.208 | M16: 988
B17: ZRE4 | C17: =C5-C8+C7-C16 ->  | E17: BBGKVPV | F17: 59,850 | I17: 1953 | J17: 2018 | K17: 14 | L17: 0.192 | M17: 912
B18: ZRE4VP | C18: =C5 ->  | E18: KVSATZAG | F18: 0.07800 | I18: 1954 | J18: 2019 | K18: 15 | L18: 0.176 | M18: 836 | O18: =0.008+0.07 -> 0.078
E19: TBSVORV | F19: 1.00 | I19: 1955 | J19: 2020 | K19: 16 | L19: 0.160 | M19: 760
A20: MRE4 | B20: ZRE4 | C20: =C17/100 ->  | E20: W1STKL5 | F20: 12,485 | I20: 1956 | J20: 2021 | K20: 17 | L20: 0.152 | M20: 722
B21: ZRE4VP | C21: =C18/100 ->  | E21: W2STKL5 | F21: 31,404 | I21: 1957 | J21: 2022 | K21: 18 | L21: 0.144 | M21: 684
E22: W3STKL5 | F22: 222,260 | I22: 1958 | J22: 2023 | K22: 19 | L22: 0.136 | M22: 646
A23: MZTABFB | B23: KZTAB | C23: =IF(C6=3,2,1) -> 1 | E23: GFB | F23: 10,908 | I23: 1959 | J23: 2024 | K23: 20
B24: ANP | C24: =F25 -> 1,230 | E24: SOLZFREI | F24: 17,543.00 | I24: 1960 | J24: 2025 | K24: 21 | L24: 0.120 | M24: 570
B25: EFA | C25: =IF(C6=2,F26,0) -> 0 | E25: ANP | F25: 1,230 | G25: MZTABFB | I25: 1961 | J25: 2026 | K25: 22 | L25: 0.112 | M25: 532
B26: SAP | C26: =IF(C6>5,0,F27) -> 36 | E26: EFA | F26: 4,260 | I26: 1962 | J26: 2027 | K26: 23 | L26: 0.104 | M26: 494 | O26: NEU | P26: Änderung noch nicht im Ablaufpan
B27: KFB | C27: =IF(C6<4,C2*F28,IF(C6=4,C2*F28/2,0)) -> 0 | E27: SAP | F27: 36 | I27: 1963 | J27: 2028 | K27: 24 | L27: 0.096 | M27: 456
B28: ZTABFB | C28: =IF(C6=6,0,C24+C25+C26) -> 1,266 | E28: KFB | F28: 8,952 | I28: 1964 | J28: 2029 | K28: 25 | L28: 0.088 | M28: 418
A29: UPEVP | B29: ZRE4VP | C29: =MIN(C9,C21) ->  | E29: VHB / VSP2 | F29: 1,900 | G29: UPEVP | I29: 1965 | J29: 2030 | K29: 26 | L29: 0.080 | M29: 380 | O29: ANP | P29: 1,230
B30: VSP1 | C30: =IF(C4=1,0,ROUNDDOWN(F19*C29*G5,2)) ->  | E30: VHB / VSP2 | F30: 3,000 | I30: 1966 | J30: 2031 | K30: 27 | L30: 0.072 | M30: 342 | O30: EFA | P30: 4,260
B31: VHB | C31: =IF(C23=1,F29,F30) -> 1,900.00 | F31: 0.42 | G31: MST5-6 | I31: 1967 | J31: 2032 | K31: 28 | L31: 0.064 | M31: 304
B32: VSP2 | C32: =MIN(C31,ROUNDDOWN(0.12*C29,2)) ->  | F32: 0.45 | I32: 1968 | J32: 2033 | K32: 29 | L32: 0.056 | M32: 266
B33: =IF(Eingaben!H12=0,"KVSatz=0",(Eingaben!H12 +Eingaben!H13)/2 & " % + PV") -> KVSatz=0 | C33: =IF(Berechnung!P16=0,0,G4+C11) -> 0.09300 | E33: SOLI | F33: 5.50 | G33: MSOLZ | I33: 1969 | J33: 2034 | K33: 30 | L33: 0.048 | M33: 228
B34: KV | C34: =IF(C10>0,IF(C6=6,0,C10),ROUNDDOWN(MIN(C21,F17)*C33*100,0)/100) ->  | F34: 11.90 | G34: SOLZMIN F | I34: 1970 | J34: 2035 | K34: 31 | L34: 0.040 | M34: 190
B35: KV>VHB? | C35: =IF(C34>C31,C34,C32) ->  | F35: 16,000 | G35: UPTAB23 | I35: 1971 | J35: 2036 | K35: 32 | L35: 0.032 | M35: 152
B36: VSPN | C36: =ROUNDUP(C30+C35,0) ->  | F36: 62,810 | I36: 1972 | J36: 2037 | K36: 33 | L36: 0.024 | M36: 114
A37: UMVSP | B37: ZVE | C37: =ROUNDDOWN(C20-C28-C36,0) ->  | F37: 277,826 | I37: 1973 | J37: 2038 | K37: 34 | L37: 0.016 | M37: 76
B38: ZZX | C38: =MAX(0,ROUNDDOWN(C37/C23,0)) ->  | F38: 192.59 | I38: 1974 | J38: 2039 | K38: 35 | L38: 0.008 | M38: 38
A39: UPTAB16 | B39: ST | C39: =IF(C38<=F23,0,IF(C38<=F35,INT((F41*(C38-F23)/10000+F42)*(C38-F23)/10000),IF(C38<=F36,INT((F38*(C38-F35)/10000+F39)*(C38-F35)/10000+F40),IF(C38<F37,INT(C38*F31-F43),INT(C38*F32-F44)))))*C23 ->  | F39: 2,397 | I39: 1975 | J39: 2040 | K39: 36 | L39: 0.000 | M39: 0
A40: MST5-6 | B40: X | C40: =MIN(F21,C38)*1.25 ->  | F40: 966.53
B41: ST1 | C41: =IF(C40<=F23,0,IF(C40<=F35,INT((F41*(C40-F23)/10000+F42)*(C40-F23)/10000),IF(C40<=F36,INT((F38*(C40-F35)/10000+F39)*(C40-F35)/10000+F40),IF(C40<=F37,INT(C40*F31-F43),INT(C40*F32-F44))))) ->  | F41: 979.18
B42: X | C42: =MIN(F21,C38)*0.75 ->  | F42: 1,400
B43: ST2 | C43: =IF(C42<=F23,0,IF(C42<=F35,INT((F41*(C42-F23)/10000+F42)*(C42-F23)/10000),IF(C42<F36,INT((F38*(C42-F35)/10000+F39)*(C42-F35)/10000+F40),IF(C42<F37,INT(C42*F31-F43),INT(C42*F32-F44))))) ->  | F43: 9,972.98
B44: DIFF | C44: =(C41-C43)*2 ->  | F44: 18,307.73
B45: MIST | C45: =ROUNDDOWN(MIN(C38,F21)*0.14,0) -> 
B46: ST | C46: =MAX(C44,C45) -> 
B47: ST | C47: =IF(C38>F22,(F22 - F21)*F31 + C46,ROUNDDOWN(MAX(C38-F21,0)*F31+C46,0)) -> 
B48: VERGL | C48: =IF(AND(C38>F20,C38<=F21),C46,0) -> 
B49: ST | C49: =ROUNDDOWN(F20*0.14,0) -> 1,747
B50: ST | C50: =MIN(ROUNDDOWN(MAX(C38-F20,0)*F31+C49,0),C47) -> 
B51: MIT REICHST | C51: =ROUNDDOWN(MAX(C38-F22,0)*F32+C50,0) -> 
B52: LSTJAHR | C52: =ROUNDDOWN(IF(C6<5,C39,C51)*C12,0) -> 
B53: JW | C53: =C52*100 -> 
A54: MLSTJAHR | B54: LSTLZZ | C54: =IF(C3=1,C53,IF(C3=2,ROUNDDOWN(C53/12,0),IF(C3=3,ROUNDDOWN((C53*7)/360,0),ROUNDDOWN(C53/360,0)))) -> 
B55: ZTABFB | C55: =C27+C28 -> 1,266
B56: ZVE | C56: =C20-C36-C55 -> 
B57: ZVE, X | C57: =IF(C56<36,0,ROUNDDOWN(C56/C23,0)) -> 
B58: ST | C58: =IF(C57<=F23,0,IF(C57<=F35,INT((F41*(C57-F23)/10000+F42)*(C57-F23)/10000),IF(C57<=F36,INT((F38*(C57-F35)/10000+F39)*(C57-F35)/10000+F40),IF(C57<F37,INT(C57*F31-F43),INT(C57*F32-F44)))))*C23 -> 
B59: JBMG | C59: =IF(C2>0,ROUNDDOWN(C58*C12,0),C52) -> 
A60: MSOLZ | B60: SOLZFREI | C60: =(F24)*C23 -> 17543
B61: SOLZJ | C61: =ROUNDDOWN((C59*F33)/100,2) -> 
B62: SOLZMIN | C62: =((C59-C60)*F34)/100 -> 
B63: SOLZJ | C63: =MIN(C62,C61) -> 
B64: JW | C64: =C63*100 -> 
A65: SOLZ | B65: ANTEIL1 | C65: =ROUNDDOWN(IF(C3=1,C64,IF(C3=2,C64/12,IF(C3=3,(C64*7)/360,C64/360))),0) -> 
B66: SOLZLZZ | C66: =IF(C59>C60,C65,0) -> 
B67: JW | C67: =C59*100 -> 
A68: BK | B68: BK | C68: =ROUNDDOWN(IF(C3=1,C67,IF(C3=2,C67/12,IF(C3=3,(C67*7)/360,C67/360))),0) -> 
A69: FAKTOR LZZ | B69: FLZZ | C69: =IF(C3=1,12,IF(C3=2,1,IF(C3=3,84/360,12/360))) -> 12.00000000

Sheet Berechnung_Alt (hidden)
P2: =+Eingaben!X34 -> 0
N3: Berechnung
B4: Lohnsteuer-Rechner 2023 - Berechnung
D6: =+IF(P2=0,"Es fehlen noch Angaben im Arbeitblatt Eingaben","Alle erforderlichen Eingaben wurden gemacht") -> Es fehlen noch Angaben im Arbeitblatt Eingaben
D8: Steuerpflichtiger Arbeitslohn in Euro | H8: =IF($P$2=0,"",IF(Eingaben!H5="","",Eingaben!H5)) ->  | L8: =+H8 ->  | R8: =+L8 -> 
D9: Für welchen Zeitraum soll die LSt berechnet werden? | H9: =IF($P$2=0,"",IF(Eingaben!H6="","",Eingaben!H6)) ->  | L9: =+P9 -> 1 | P9: =+IF(H9="Jahr",1,IF(H9="Monat",2,IF(H9="Woche",3,IF(H9="Tag",4,1)))) -> 1 | R9: =+P9 -> 1
D11: Steuerklasse | H11: =IF($P$2=0,"",IF(Eingaben!H7="","",Eingaben!H7)) ->  | L11: 1 | P11: =+IF(ISNUMBER(H11),H11,1) -> 1 | R11: =+P11 -> 1
D12: Ehegattenfaktor (3 Nachkommastellen) nur für StKl IV | H12: =IF($P$2=0,"",IF(H11<>4,"",IF(Eingaben!H8="",0,Eingaben!H8))) ->  | L12: 0.000 | P12: =+IF(ISNUMBER(H12),H12,0) -> 0 | R12: =+P12 -> 0
D13: allgemeine oder besondere LSt-Tabelle | H13: =IF($P$2=0,"",IF(Eingaben!H9="","",Eingaben!H9)) ->  | I13: =+IF(Eingaben!I9="","",Eingaben!I9) ->  | L13: 0 | P13: =+IF(H13="Allgemeine LSt-Tabelle",0,IF(H13="Besondere LSt-Tabelle",1,0)) -> 0 | R13: =+P13 -> 0
D14: Kinderfreibetrag | H14: =IF($P$2=0,"",IF(Eingaben!H10="","",Eingaben!H10)) ->  | L14: 0 | P14: =+IF(ISNUMBER(H14),H14,0) -> 0 | R14: =+P14 -> 0
D15: Kirchensteuer | H15: =IF($P$2=0,"",IF(Eingaben!H11="","",Eingaben!H11)) ->  | L15: 0 | P15: =+IF(ISNUMBER(H15),H15,0) -> 0 | R15: =+P15*100 -> 0
D16: Krankenversicherungssatz, bzw. PKV-Basisprämie in € | H16: =IF($P$2=0,"",IF(Eingaben!H12="","",Eingaben!H12)) ->  | L16: 15.5 | P16: =+IF(ISNUMBER(H16),H16,15.5) -> 15.5 | R16: =P16 -> 15.5
D17: Krankenkassen-Zusatzbeitragsatz (d. Arbeitnehmers) | H17: =IF($P$2=0,"",IF(Eingaben!H13="","",IF(H16>20,0,Eingaben!H13))) ->  | L17: =+P17 ->  | P17: =+H17 ->  | R17: =+P17 -> 
D18: Arbeitgeberzuschuss zur privaten KV | H18: =IF($P$2=0,"",IF(Eingaben!H14="","",Eingaben!H14)) ->  | P18: =+IF(H18="Ja",1,0) -> 0
D19: Sonderabgabe zur Pflegeversicherung | H19: =IF($P$2=0,"",IF(Eingaben!H15="","",Eingaben!H15)) ->  | L19: 0 | P19: =+IF(H19="Ja",1,0) -> 0 | R19: =+P19 -> 0
D20: Arbeitsstelle in Ostdeutschland | H20: =IF($P$2=0,"",IF(Eingaben!H16="","",Eingaben!H16)) ->  | L20: 0 | P20: =+IF(H20="Ja",1,0) -> 0 | R20: 0
D21: =+IF(P20=1," Arbeitsort in Sachsen?"," Arbeitsort liegt nicht in Sachsen") -> Arbeitsort liegt nicht in Sachsen | H21: =IF($P$2=0,"",IF(Eingaben!H17="","",Eingaben!H17)) ->  | L21: 0 | P21: =+IF(P20=0,0,IF(H21="Ja",1,0)) -> 0 | R21: 0
D22: Altersentlastungsbetrag | H22: =IF($P$2=0,"",IF(Eingaben!H18="","",Eingaben!H18)) ->  | I22: =+IF(Eingaben!I18="","",Eingaben!I18) ->  | L22: 0 | P22: =IF(ISERROR(VLOOKUP(H22,Eingaben!R6:S25,2,FALSE)),0,VLOOKUP(H22,Eingaben!R6:S25,2,FALSE)) -> 0 | R22: 0
D23: (Jahres)Hinzurechnungen | H23: =IF($P$2=0,"",IF(Eingaben!H19="","",Eingaben!H19)) ->  | L23: 0.00 | P23: =+IF(ISNUMBER(H23),H23,0) -> 0 | R23: 0
D24: (Jahres)lohnsteuerfreibetrag auf LSt-Karte | H24: =IF($P$2=0,"",IF(Eingaben!H20="","",Eingaben!H20)) ->  | L24: 0.00 | P24: =+IF(ISNUMBER(H24),H24,0) -> 0 | R24: 0
D25: =IF(AND(AND(L12>0,L12<1),L11=4),"Ehegattenfaktor von " & L12 & " berücksichtigt","") -> 
D26: Berechnungsergebnisse:
D28: Lohnsteuer | H28: =IF($P$2=0,"",LSTBerechnung2023!C54/100) -> 
D29: Solidaritätszuschlag | H29: =IF($P$2=0,"",LSTBerechnung2023!C66/100) -> 
D30: Kirchensteuer | H30: =IF($P$2=0,"",ROUNDDOWN(LSTBerechnung2023!C68*Berechnung_Alt!R15/10000,2)) -> 
D32: Rentenversicherung | H32: =IF($P$2=0,"",IF(P13=0,ROUND(IF(P9=1, IF(H8>LSTBerechnung2023!C9,LSTBerechnung2023!C9,H8),IF(P9=2, IF(H8>(LSTBerechnung2023!C9/12),(LSTBerechnung2023!C9/12),H8), IF(P9=3, IF(H8>(LSTBerechnung2023!C9/360*7),(LSTBerechnung2023!C9/360*7),H8), IF(H8>(LSTBerechnung2023!C9/360),(LSTBerechnung2023!C9/360),H8))))*0.093,2),0)) -> 
D33: Krankenversicherung | H33: =IF(ISERROR(IF(H16>20,IF(P18=0,H16*LSTBerechnung2023!$C$69,MAX(H16/2*LSTBerechnung2023!$C$69,(H16-(LSTBerechnung2023!G11*LSTBerechnung2023!F17/12))*LSTBerechnung2023!$C$69)),IF(H16=0,0,ROUND(IF(P9=1,IF(H8>LSTBerechnung2023!F17,LSTBerechnung2023!F17,H8),IF(P9=2,IF(H8>(LSTBerechnung2023!F17/12),(LSTBerechnung2023!F17/12),H8),IF(P9=3,IF(H8>(LSTBerechnung2023!F17/360*7),(LSTBerechnung2023!F17/360*7),H8),IF(H8>(LSTBerechnung2023!F17/360),(LSTBerechnung2023!F17/360),H8))))*((H16+H17)/2*0.01),2)))),"",IF(H16>20,IF(P18=0,H16*LSTBerechnung2023!$C$69,MAX(H16/2*LSTBerechnung2023!$C$69,(H16-(LSTBerechnung2023!G11*LSTBerechnung2023!F17/12))*LSTBerechnung2023!$C$69)),IF(H16=0,0,ROUND(IF(P9=1,IF(H8>LSTBerechnung2023!F17,LSTBerechnung2023!F17,H8),IF(P9=2,IF(H8>(LSTBerechnung2023!F17/12),(LSTBerechnung2023!F17/12),H8),IF(P9=3,IF(H8>(LSTBerechnung2023!F17/360*7),(LSTBerechnung2023!F17/360*7),H8),IF(H8>(LSTBerechnung2023!F17/360),(LSTBerechnung2023!F17/360),H8))))*((H16+H17)/2*0.01),2)))) ->  | P33: =IF(ISERROR(IF(P16=0,"Privat Krankenversichert ohne Nachweis",IF(P16>20,"Basisprämie KV, AG-Anteil abgezogen",(P16+P17)/2 & " % Krankenversicherungsbeitrag"))),"14,6 % Krankenversicherung",IF(P16=0,"Privat Krankenversichert ohne Nachweis",IF(P16>20,"Basisprämie KV, AG-Anteil abgezogen",(P16+P17)/2 & " % Krankenversicherungsbeitrag"))) -> 14,6 % Krankenversicherung
D34: Pflegeversicherung | H34: =IF($P$2=0,"",IF(P16>20,0,IF(P16=0,0,ROUND(IF(P9=1,IF(H8>LSTBerechnung2023!F17,LSTBerechnung2023!F17,H8),IF(P9=2,IF(H8>(LSTBerechnung2023!F17/12),(LSTBerechnung2023!F17/12),H8),IF(P9=3,IF(H8>(LSTBerechnung2023!F17/360*7),(LSTBerechnung2023!F17/360*7),H8),IF(H8>(LSTBerechnung2023!F17/360),(LSTBerechnung2023!F17/360),H8)))),2)))*LSTBerechnung2023!C11) ->  | P34: =IF(P21=1,2.025,1.525) + IF(P19=1,0.25,0) & " % Pflegeversicherung" -> 1,525 % Pflegeversicherung
D35: Arbeitslosenversicherung | H35: =IF($P$2=0,"",IF(P13=0,ROUND(IF(P9=1,IF(H8>LSTBerechnung2023!C9,LSTBerechnung2023!C9,H8),IF(P9=2,IF(H8>(LSTBerechnung2023!C9/12),(LSTBerechnung2023!C9/12),H8),IF(P9=3,IF(H8>(LSTBerechnung2023!C9/360*7),(LSTBerechnung2023!C9/360*7),H8),IF(H8>(LSTBerechnung2023!C9/360),(LSTBerechnung2023!C9/360),H8))))*LSTBerechnung2023!G6,2),0)) -> 
D37: Abzüge | H37: =IF($P$2=0,"",SUM(H28:H35)) -> 
D38: Nettolohn | H38: =IF(H8="","",L8-H37) -> 
B41: << Startseite | E41: Beispiel | F41: Hilfe?
B43: © 2023 by mediaforwork - ein Unternehmensbereich der Verlag für die Deutsche Wirtschaft AG
B44: Die Vervielfältigung, Verbreitung oder Veräußerung der Daten oder Texte ist unzulässig und
B45: ausdrücklich nur mit Genehmigung des Verlags gestattet.

Sheet LSTBerechnung2023 (hidden)
A1: LST | B1: 2022 | E1: ="SOZ-VS-BEITRAGSSÄTZE "&BearbJahr -> SOZ-VS-BEITRAGSSÄTZE 2022 | I1: Altersentlastungsbetrag
A2: MPARA | B2: ZKF | C2: =IF(Berechnung!P11>4,0,Berechnung!P14) -> 0 | E2: Bezeichnung | F2: SATZ | G2: Berechnet | I2: Geburtsjahr | J2: Jahr | K2: Nummer | L2: TAB4 | M2: TAB5
B3: LZZ | C3: =Berechnung!P9 -> 1 | E3: KVSATZ | F3: 14.600% | G3: =F3/2+F4 -> 7.300% | K3: 0 | L3: 0 | M3: 0
B4: KRV | C4: =Berechnung!P13 -> 0 | E4: KV_Zusatz | F4: =Eingaben!H13/100 -> 0.00% | G4: =F4/2+0.07 -> 7.000% | I4: vor 1941 | J4: bis 2005 | K4: 1 | L4: 0.400 | M4: 1900
B5: ZRE4J | C5: =ROUNDDOWN(IF(C3=1,Berechnung!H8*100,IF(C3=2,(Berechnung!H8*100)*12,IF(C3=3,((Berechnung!H8*100)*360)/7,(Berechnung!H8*100)*360))),2) ->  | E5: RV_Satz | F5: 18.60% | G5: =F5/2 -> 9.300% | I5: 1941 | J5: 2006 | K5: 2 | L5: 0.384 | M5: 1824
B6: STKL | C6: =+Berechnung!P11 -> 1 | E6: AV_Satz | F6: 2.60% | G6: =F6/2 -> 1.300% | I6: 1942 | J6: 2007 | K6: 3 | L6: 0.368 | M6: 1748
B7: JLHINZU | C7: =IF(C6=6,0,Berechnung!P23*100) -> 0 | E7: PV_Satz | F7: 3.05% | G7: =IF(AND(Eingaben!P15=1,Eingaben!P17),F8+F9,IF(Eingaben!P15=1,F8,IF(AND(Eingaben!P10=0,Eingaben!P15=1),F7/2+F9,F7/2))) -> 1.525% | H7: ohne / mit Kind | I7: 1943 | J7: 2008 | K7: 4 | L7: 0.352 | M7: 1672
B8: JLFREIB | C8: =Berechnung!P24*100 -> 0 | E8: PV_Satz Sachsen | F8: 2.025% | I8: 1944 | J8: 2009 | K8: 5 | L8: 0.336 | M8: 1596
B9: BBGRV | C9: =IF(Berechnung!P20=0,F15,F16) -> 87,600 | E9: PV_Satz Sachsen | F9: 0.350% | I9: 1945 | J9: 2010 | K9: 6 | L9: 0.320 | M9: 1520
B10: PKV | C10: =IF(Eingaben!H12>20,MAX($C$31,ROUNDDOWN(Eingaben!H12*12,2)-IF(Eingaben!P14=1,IF(Eingaben!P16=1,SUM(F11,F7,-F8),SUM(F11,F7/2))*MIN(C5/100,F17),0)),0) -> 0 | E10: KV ZUSATZ Schnitt | F10: 1.600% | I10: 1946 | J10: 2011 | K10: 7 | L10: 0.304 | M10: 1444
B11: PV% | C11: =IF(AND(Berechnung!P19=1,Berechnung!P21=1),F8+F9,IF(Berechnung!P21=1,F8,IF(AND(Berechnung!P14=0,Berechnung!P19=1),F7/2+F9,F7/2))) -> 0.01525 | E11: KVSATZ AG | F11: 7.80% | G11: =F3/2+F7-G7+F10/2 -> 9.625% | H11: KV plus PV AG | I11: 1947 | J11: 2012 | K11: 8 | L11: 0.288 | M11: 1368
B12: FAKTOR F | C12: =IF(OR(OR(Berechnung!P12=0,Berechnung!P12>1),Berechnung!P11<>4),1,Berechnung!P12) -> 1.00 | I12: 1948 | J12: 2013 | K12: 9 | L12: 0.272 | M12: 1292
A13: MRE4ALTE | B13: TAB4 | C13: =VLOOKUP(Eingaben!T26,K3:L23,2,FALSE) -> 0 | E13: BMF - PAP - ANGABEN | I13: 1949 | J13: 2014 | K13: 10 | L13: 0.256 | M13: 1216 | P13: =2005-64 -> 1941
B14: TAB5 | C14: =VLOOKUP(Eingaben!T26,K3:M23,3,FALSE)*100 -> 0 | E14: Name | F14: WERT | G14: Bereich | I14: 1950 | J14: 2015 | K14: 11 | L14: 0.240 | M14: 1140
B15: ALTEANTEIL | C15: =C14 -> 0 | E15: BBGRV | F15: 87,600 | G15: MPARA | I15: 1951 | J15: 2016 | K15: 12 | L15: 0.224 | M15: 1064
B16: ALTE | C16: =IF(Berechnung!P22=0,0,IF((C5*C13)>C15,C15,C5*C13)) -> 0 | E16: BBGRV | F16: 85,200 | I16: 1952 | J16: 2017 | K16: 13 | L16: 0.208 | M16: 988
B17: ZRE4 | C17: =C5-C8+C7-C16 ->  | E17: BBGKVPV | F17: 59,850 | I17: 1953 | J17: 2018 | K17: 14 | L17: 0.192 | M17: 912
B18: ZRE4VP | C18: =C5 ->  | E18: KVSATZAG | F18: 0.07800 | I18: 1954 | J18: 2019 | K18: 15 | L18: 0.176 | M18: 836 | O18: =0.008+0.07 -> 0.078
E19: TBSVORV | F19: 1.00 | I19: 1955 | J19: 2020 | K19: 16 | L19: 0.160 | M19: 760
A20: MRE4 | B20: ZRE4 | C20: =C17/100 ->  | E20: W1STKL5 | F20: 12,485 | I20: 1956 | J20: 2021 | K20: 17 | L20: 0.152 | M20: 722
B21: ZRE4VP | C21: =C18/100 ->  | E21: W2STKL5 | F21: 31,404 | I21: 1957 | J21: 2022 | K21: 18 | L21: 0.144 | M21: 684
E22: W3STKL5 | F22: 222,260 | I22: 1958 | J22: 2023 | K22: 19 | L22: 0.136 | M22: 646
A23: MZTABFB | B23: KZTAB | C23: =IF(C6=3,2,1) -> 1 | E23: GFB | F23: 10,908 | I23: 1959 | J23: 2024 | K23: 20
B24: ANP | C24: =F25 -> 1,230 | E24: SOLZFREI | F24: 17,543.00 | I24: 1960 | J24: 2025 | K24: 21 | L24: 0.120 | M24: 570
B25: EFA | C25: =IF(C6=2,F26,0) -> 0 | E25: ANP | F25: 1,230 | G25: MZTABFB | I25: 1961 | J25: 2026 | K25: 22 | L25: 0.112 | M25: 532
B26: SAP | C26: =IF(C6>5,0,F27) -> 36 | E26: EFA | F26: 4,260 | I26: 1962 | J26: 2027 | K26: 23 | L26: 0.104 | M26: 494 | O26: NEU | P26: Änderung noch nicht im Ablaufpan
B27: KFB | C27: =IF(C6<4,C2*F28,IF(C6=4,C2*F28/2,0)) -> 0 | E27: SAP | F27: 36 | I27: 1963 | J27: 2028 | K27: 24 | L27: 0.096 | M27: 456
B28: ZTABFB | C28: =IF(C6=6,0,C24+C25+C26) -> 1,266 | E28: KFB | F28: 8,952 | I28: 1964 | J28: 2029 | K28: 25 | L28: 0.088 | M28: 418
A29: UPEVP | B29: ZRE4VP | C29: =MIN(C9,C21) ->  | E29: VHB / VSP2 | F29: 1,900 | G29: UPEVP | I29: 1965 | J29: 2030 | K29: 26 | L29: 0.080 | M29: 380 | O29: ANP | P29: 1,230
B30: VSP1 | C30: =IF(C4=1,0,ROUNDDOWN(F19*C29*G5,2)) ->  | E30: VHB / VSP2 | F30: 3,000 | I30: 1966 | J30: 2031 | K30: 27 | L30: 0.072 | M30: 342 | O30: EFA | P30: 4,260
B31: VHB | C31: =IF(C23=1,F29,F30) -> 1,900.00 | F31: 0.42 | G31: MST5-6 | I31: 1967 | J31: 2032 | K31: 28 | L31: 0.064 | M31: 304
B32: VSP2 | C32: =MIN(C31,ROUNDDOWN(0.12*C29,2)) ->  | F32: 0.45 | I32: 1968 | J32: 2033 | K32: 29 | L32: 0.056 | M32: 266
B33: =IF(Eingaben!H12=0,"KVSatz=0",(Eingaben!H12 +Eingaben!H13)/2 & " % + PV") -> KVSatz=0 | C33: =IF(Berechnung!P16=0,0,G4+C11) -> 0.08525 | E33: SOLI | F33: 5.50 | G33: MSOLZ | I33: 1969 | J33: 2034 | K33: 30 | L33: 0.048 | M33: 228
B34: KV | C34: =IF(C10>0,IF(C6=6,0,C10),ROUNDDOWN(MIN(C21,F17)*C33*100,0)/100) ->  | F34: 11.90 | G34: SOLZMIN F | I34: 1970 | J34: 2035 | K34: 31 | L34: 0.040 | M34: 190
B35: KV>VHB? | C35: =IF(C34>C31,C34,C32) ->  | F35: 16,000 | G35: UPTAB23 | I35: 1971 | J35: 2036 | K35: 32 | L35: 0.032 | M35: 152
B36: VSPN | C36: =ROUNDUP(C30+C35,0) ->  | F36: 62,810 | I36: 1972 | J36: 2037 | K36: 33 | L36: 0.024 | M36: 114
A37: UMVSP | B37: ZVE | C37: =ROUNDDOWN(C20-C28-C36,0) ->  | F37: 277,826 | I37: 1973 | J37: 2038 | K37: 34 | L37: 0.016 | M37: 76
B38: ZZX | C38: =MAX(0,ROUNDDOWN(C37/C23,0)) ->  | F38: 192.59 | I38: 1974 | J38: 2039 | K38: 35 | L38: 0.008 | M38: 38
A39: UPTAB16 | B39: ST | C39: =IF(C38<=F23,0,IF(C38<=F35,INT((F41*(C38-F23)/10000+F42)*(C38-F23)/10000),IF(C38<=F36,INT((F38*(C38-F35)/10000+F39)*(C38-F35)/10000+F40),IF(C38<F37,INT(C38*F31-F43),INT(C38*F32-F44)))))*C23 ->  | F39: 2,397 | I39: 1975 | J39: 2040 | K39: 36 | L39: 0.000 | M39: 0
A40: MST5-6 | B40: X | C40: =MIN(F21,C38)*1.25 ->  | F40: 966.53
B41: ST1 | C41: =IF(C40<=F23,0,IF(C40<=F35,INT((F41*(C40-F23)/10000+F42)*(C40-F23)/10000),IF(C40<=F36,INT((F38*(C40-F35)/10000+F39)*(C40-F35)/10000+F40),IF(C40<=F37,INT(C40*F31-F43),INT(C40*F32-F44))))) ->  | F41: 979.18
B42: X | C42: =MIN(F21,C38)*0.75 ->  | F42: 1,400
B43: ST2 | C43: =IF(C42<=F23,0,IF(C42<=F35,INT((F41*(C42-F23)/10000+F42)*(C42-F23)/10000),IF(C42<F36,INT((F38*(C42-F35)/10000+F39)*(C42-F35)/10000+F40),IF(C42<F37,INT(C42*F31-F43),INT(C42*F32-F44))))) ->  | F43: 9,972.98
B44: DIFF | C44: =(C41-C43)*2 ->  | F44: 18,307.73
B45: MIST | C45: =ROUNDDOWN(MIN(C38,F21)*0.14,0) -> 
B46: ST | C46: =MAX(C44,C45) -> 
B47: ST | C47: =IF(C38>F22,(F22 - F21)*F31 + C46,ROUNDDOWN(MAX(C38-F21,0)*F31+C46,0)) -> 
B48: VERGL | C48: =IF(AND(C38>F20,C38<=F21),C46,0) -> 
B49: ST | C49: =ROUNDDOWN(F20*0.14,0) -> 1,747
B50: ST | C50: =MIN(ROUNDDOWN(MAX(C38-F20,0)*F31+C49,0),C47) -> 
B51: MIT REICHST | C51: =ROUNDDOWN(MAX(C38-F22,0)*F32+C50,0) -> 
B52: LSTJAHR | C52: =ROUNDDOWN(IF(C6<5,C39,C51)*C12,0) -> 
B53: JW | C53: =C52*100 -> 
A54: MLSTJAHR | B54: LSTLZZ | C54: =IF(C3=1,C53,IF(C3=2,ROUNDDOWN(C53/12,0),IF(C3=3,ROUNDDOWN((C53*7)/360,0),ROUNDDOWN(C53/360,0)))) -> 
B55: ZTABFB | C55: =C27+C28 -> 1,266
B56: ZVE | C56: =C20-C36-C55 -> 
B57: ZVE, X | C57: =IF(C56<36,0,ROUNDDOWN(C56/C23,0)) -> 
B58: ST | C58: =IF(C57<=F23,0,IF(C57<=F35,INT((F41*(C57-F23)/10000+F42)*(C57-F23)/10000),IF(C57<=F36,INT((F38*(C57-F35)/10000+F39)*(C57-F35)/10000+F40),IF(C57<F37,INT(C57*F31-F43),INT(C57*F32-F44)))))*C23 -> 
B59: JBMG | C59: =IF(C2>0,ROUNDDOWN(C58*C12,0),C52) -> 
A60: MSOLZ | B60: SOLZFREI | C60: =(F24)*C23 -> 17543
B61: SOLZJ | C61: =ROUNDDOWN((C59*F33)/100,2) -> 
B62: SOLZMIN | C62: =((C59-C60)*F34)/100 -> 
B63: SOLZJ | C63: =MIN(C62,C61) -> 
B64: JW | C64: =C63*100 -> 
A65: SOLZ | B65: ANTEIL1 | C65: =ROUNDDOWN(IF(C3=1,C64,IF(C3=2,C64/12,IF(C3=3,(C64*7)/360,C64/360))),0) -> 
B66: SOLZLZZ | C66: =IF(C59>C60,C65,0) -> 
B67: JW | C67: =C59*100 -> 
A68: BK | B68: BK | C68: =ROUNDDOWN(IF(C3=1,C67,IF(C3=2,C67/12,IF(C3=3,(C67*7)/360,C67/360))),0) -> 
A69: FAKTOR LZZ | B69: FLZZ | C69: =IF(C3=1,12,IF(C3=2,1,IF(C3=3,84/360,12/360))) -> 12.00000000

Sheet Berechnung_Gleitzone (hidden)
B3: Tats. Arbeitsentgelt | C3: 1,000.00 € | J3: =+IF(ISNUMBER(C3),1,0) -> 1
B4: Faktor "F" | C4: 0.692200 | J4: =+IF(ISNUMBER(C4),1,0) -> 1
B5: Formel > 520 | C5: =IF(C3>450,ROUND(C4*520+((2000/(2000-520))-(520/(2000-520))*C4)*(C3-520),2)) -> 891.85 | J5: =+IF(ISNUMBER(C5),1,0) -> 1
B6: Voller Satz in RV | C6: Nein | E6: =ROUND($C$3*$C13/2,2) -> 93.00 € | F6: =ROUND($C$5*$C13,2)-ROUND($C$3*$C13/2,2) -> 72.88 € | J6: =+IF(C6="",0,1) -> 1
B8: Versicherung | C8: Werte | E8: Summe | F8: AG | G8: AN
B9: KV | C9: 14.60% | E9: =IF($L$15=1,ROUND($C$5*$C9,2),"") -> 130.21 € | F9: =IF($L$15=1,ROUND($C$3*$C9/2,2),"") -> 73.00 € | G9: =IF($L$15=1,E9-F9,"") -> 57.21 €
B10: KV - Zusatzbeitrag | C10: 0.80% | E10: =IF($L$15=1,ROUND($C$5*$C10,2),"") -> 7.13 € | F10: =IF($L$15=1,ROUND($C$3*$C10/2,2),"") -> 4.00 € | G10: =IF($L$15=1,E10-F10,"") -> 3.13 €
B11: PV | C11: 3.05% | E11: =IF($L$15=1,ROUND($C$5*$C11,2),"") -> 27.20 € | F11: =IF($L$15=1,ROUND($C$3*$C11/2,2),"") -> 15.25 € | G11: =IF($L$15=1,E11-F11,"") -> 11.95 €
B12: PV - Beitragszuschlag | C12: =+IF(Berechnung!H19="Ja",LSTBerechnung2020!F9,0) -> 0.000% | E12: =IF($L$15=1,ROUND($C$5*$C12,2),"") -> 0.00 € | G12: =IF($L$15=1,E12-F12,"") -> 0.00 €
B13: RV | C13: 18.60% | E13: =IF($L$15=1,SUM(F13:G13),"") -> 165.88 € | F13: =IF($L$15=1,ROUND($C$3*$C13/2,2),"") -> 93.00 € | G13: =IF($L$15=1,IF(C6="Ja",E6,F6),"") -> 72.88 €
B14: AV | C14: 2.60% | E14: =IF($L$15=1,ROUND($C$5*$C14,2),"") -> 23.19 € | F14: =IF($L$15=1,ROUND($C$3*$C14/2,2),"") -> 13.00 € | G14: =IF($L$15=1,E14-F14,"") -> 10.19 €
B15: Summe | E15: =IF($L$15=1,SUM(E9:E14),"") -> 353.61 € | F15: =IF($L$15=1,SUM(F9:F14),"") -> 198.25 € | G15: =IF($L$15=1,SUM(G9:G14),"") -> 155.36 € | J15: =+SUM(J3:J14) -> 4 | K15: 4 | L15: =+IF(J15=K15,1,0) -> 1
B21: Rechner ist nur gültig bis Brutto 2000.
B22: Liegt das Gehalt darüber, den normalen Rechner benutzen

Sheet LSTBerechnung2021 (hidden)
A1: LST | B1: 2021 | E1: ="SOZ-VS-BEITRAGSSÄTZE "&BearbJahr -> SOZ-VS-BEITRAGSSÄTZE 2021 | I1: Altersentlastungsbetrag
A2: MPARA | B2: ZKF | C2: =IF(Berechnung!P11>4,0,Berechnung!P14) -> 0 | E2: Bezeichnung | F2: SATZ | G2: Berechnet | I2: Geburtsjahr | J2: Jahr | K2: Nummer | L2: TAB4 | M2: TAB5
B3: LZZ | C3: =Berechnung!P9 -> 1 | E3: KVSATZ | F3: 14.600% | G3: =F3/2+F4 -> 8.600% | K3: 0 | L3: 0 | M3: 0
B4: KRV | C4: =Berechnung!P13 -> 0 | E4: KV_Zusatz | F4: 1.30% | G4: =F4/2+0.07 -> 7.650% | I4: vor 1941 | J4: bis 2005 | K4: 1 | L4: 0.4 | M4: 1900
B5: ZRE4J | C5: =ROUNDDOWN(IF(C3=1,Berechnung!H8*100,IF(C3=2,(Berechnung!H8*100)*12,IF(C3=3,((Berechnung!H8*100)*360)/7,(Berechnung!H8*100)*360))),2) ->  | E5: RV_Satz | F5: 18.60% | G5: =F5/2 -> 9.300% | I5: 1941 | J5: 2006 | K5: 2 | L5: 0.384 | M5: 1824
B6: STKL | C6: =+Berechnung!P11 -> 1 | E6: AV_Satz | F6: 2.40% | G6: =F6/2 -> 1.200% | I6: 1942 | J6: 2007 | K6: 3 | L6: 0.368 | M6: 1748
B7: JLHINZU | C7: =IF(C6=6,0,Berechnung!P23*100) -> 0 | E7: PV_Satz | F7: 3.05% | G7: =IF(AND(Eingaben!P15=1,Eingaben!P17),F8+F9,IF(Eingaben!P15=1,F8,IF(AND(Eingaben!P10=0,Eingaben!P15=1),F7/2+F9,F7/2))) -> 1.525% | H7: ohne / mit Kind | I7: 1943 | J7: 2008 | K7: 4 | L7: 0.352 | M7: 1672
B8: JLFREIB | C8: =Berechnung!P24*100 -> 0 | E8: PV_Satz Sachsen | F8: 2.025% | I8: 1944 | J8: 2009 | K8: 5 | L8: 0.336 | M8: 1596
B9: BBGRV | C9: =IF(Berechnung!P20=0,F15,F16) -> 85,200 | E9: PV_Satz Sachsen | F9: 0.250% | I9: 1945 | J9: 2010 | K9: 6 | L9: 0.32 | M9: 1520
B10: PKV | C10: =IF(Eingaben!H12>20,MAX($C$31,ROUNDDOWN(Eingaben!H12*12,2)-IF(Eingaben!P14=1,IF(Eingaben!P16=1,SUM(F11,F7,-F8),SUM(F11,F7/2))*MIN(C5/100,F17),0)),0) -> 0 | E10: KV ZUSATZ Schnitt | F10: 1.300% | I10: 1946 | J10: 2011 | K10: 7 | L10: 0.304 | M10: 1444
B11: PV% | C11: =IF(AND(Berechnung!P19=1,Berechnung!P21=1),F8+F9,IF(Berechnung!P21=1,F8,IF(AND(Berechnung!P14=0,Berechnung!P19=1),F7/2+F9,F7/2))) -> 0.01525 | E11: KVSATZ AG | F11: 7.65% | G11: =F3/2+F7-G7+F10/2 -> 9.475% | H11: KV plus PV AG | I11: 1947 | J11: 2012 | K11: 8 | L11: 0.288 | M11: 1368
B12: FAKTOR F | C12: =IF(OR(OR(Berechnung!P12=0,Berechnung!P12>1),Berechnung!P11<>4),1,Berechnung!P12) -> 1.00 | I12: 1948 | J12: 2013 | K12: 9 | L12: 0.272 | M12: 1292
A13: MRE4ALTE | B13: TAB4 | C13: =VLOOKUP(Eingaben!T26,K3:L20,2,FALSE) -> 0 | E13: BMF - PAP - ANGABEN | I13: 1949 | J13: 2014 | K13: 10 | L13: 0.256 | M13: 1216
B14: TAB5 | C14: =VLOOKUP(Eingaben!T26,K3:M20,3,FALSE)*100 -> 0 | E14: Name | F14: WERT | G14: Bereich | I14: 1950 | J14: 2015 | K14: 11 | L14: 0.24 | M14: 1140
B15: ALTEANTEIL | C15: =C14 -> 0 | E15: BBGRV | F15: 85,200 | G15: MPARA | I15: 1951 | J15: 2016 | K15: 12 | L15: 0.224 | M15: 1064
B16: ALTE | C16: =IF(Berechnung!P22=0,0,IF((C5*C13)>C15,C15,C5*C13)) -> 0 | E16: BBGRV | F16: 80,400 | I16: 1952 | J16: 2017 | K16: 13 | L16: 0.208 | M16: 988
B17: ZRE4 | C17: =C5-C8+C7-C16 ->  | E17: BBGKVPV | F17: 58,050 | I17: 1953 | J17: 2018 | K17: 14 | L17: 0.192 | M17: 912
B18: ZRE4VP | C18: =C5 ->  | E18: KVSATZAG | F18: 0.07650 | I18: 1954 | J18: 2019 | K18: 15 | L18: 0.176 | M18: 836
E19: TBSVORV | F19: 0.84 | I19: 1955 | J19: 2020 | K19: 16 | L19: 0.16 | M19: 760
A20: MRE4 | B20: ZRE4 | C20: =C17/100 ->  | E20: W1STKL5 | F20: 11,237 | I20: 1956 | J20: 2021 | K20: 17 | L20: 0.152 | M20: 722
B21: ZRE4VP | C21: =C18/100 ->  | E21: W2STKL5 | F21: 28,959 | I21: 1957 | J21: 2022 | K21: 18 | L21: 0.144 | M21: 684
E22: W3STKL5 | F22: 219,690 | I22: 1958 | J22: 2023 | K22: 19 | L22: 0.136 | M22: 646
A23: MZTABFB | B23: KZTAB | C23: =IF(C6=3,2,1) -> 1 | E23: GFB | F23: 9,744 | I23: 1959 | J23: 2024 | K23: 20 | L23: 0.128 | M23: 608
B24: ANP | C24: =F25 -> 1,000 | E24: SOLZFREI | F24: 16,956.00 | I24: 1960 | J24: 2025 | K24: 21 | L24: 0.12 | M24: 570
B25: EFA | C25: =IF(C6=2,F26,0) -> 0 | E25: ANP | F25: 1,000 | G25: MZTABFB | I25: 1961 | J25: 2026 | K25: 22 | L25: 0.112 | M25: 532
B26: SAP | C26: =IF(C6>5,0,F27) -> 36 | E26: EFA | F26: 1,908 | I26: 1962 | J26: 2027 | K26: 23 | L26: 0.104 | M26: 494
B27: KFB | C27: =IF(C6<4,C2*F28,IF(C6=4,C2*F28/2,0)) -> 0 | E27: SAP | F27: 36 | I27: 1963 | J27: 2028 | K27: 24 | L27: 0.096 | M27: 456
B28: ZTABFB | C28: =IF(C6=6,0,C24+C25+C26) -> 1,036 | E28: KFB | F28: 8,388 | I28: 1964 | J28: 2029 | K28: 25 | L28: 0.088 | M28: 418
A29: UPEVP | B29: ZRE4VP | C29: =MIN(C9,C21) ->  | E29: VHB / VSP2 | F29: 1,900 | G29: UPEVP | I29: 1965 | J29: 2030 | K29: 26 | L29: 0.08 | M29: 380
B30: VSP1 | C30: =IF(C4=1,0,ROUNDDOWN(F19*C29*G5,2)) ->  | E30: VHB / VSP2 | F30: 3,000 | I30: 1966 | J30: 2031 | K30: 27 | L30: 0.072 | M30: 342
B31: VHB | C31: =IF(C23=1,F29,F30) -> 1,900.00 | F31: 0.42 | G31: MST5-6 | I31: 1967 | J31: 2032 | K31: 28 | L31: 0.064 | M31: 304
B32: VSP2 | C32: =MIN(C31,ROUNDDOWN(0.12*C29,2)) ->  | F32: 0.45 | I32: 1968 | J32: 2033 | K32: 29 | L32: 0.056 | M32: 266
B33: =IF(Eingaben!H12=0,"KVSatz=0",(Eingaben!H12 +Eingaben!H13)/2 & " % + PV") -> KVSatz=0 | C33: =IF(Berechnung!P16=0,0,G4+C11) -> 0.09175 | E33: SOLI | F33: 5.50 | G33: MSOLZ | I33: 1969 | J33: 2034 | K33: 30 | L33: 0.048 | M33: 228
B34: KV | C34: =IF(C10>0,IF(C6=6,0,C10),ROUNDDOWN(MIN(C21,F17)*C33*100,0)/100) ->  | F34: 11.90 | G34: SOLZMIN F | I34: 1970 | J34: 2035 | K34: 31 | L34: 0.04 | M34: 190
B35: KV>VHB? | C35: =IF(C34>C31,C34,C32) ->  | F35: 14,753 | G35: UPTAB21 | I35: 1971 | J35: 2036 | K35: 32 | L35: 0.032 | M35: 152
B36: VSPN | C36: =ROUNDUP(C30+C35,0) ->  | F36: 57,918 | I36: 1972 | J36: 2037 | K36: 33 | L36: 0.024 | M36: 114
A37: UMVSP | B37: ZVE | C37: =ROUNDDOWN(C20-C28-C36,0) ->  | F37: 274,613 | I37: 1973 | J37: 2038 | K37: 34 | L37: 0.016 | M37: 76
B38: ZZX | C38: =MAX(0,ROUNDDOWN(C37/C23,0)) ->  | F38: 208.85 | I38: 1974 | J38: 2039 | K38: 35 | L38: 0.008 | M38: 38
A39: UPTAB16 | B39: ST | C39: =IF(C38<=F23,0,IF(C38<=F35,INT((F41*(C38-F23)/10000+F42)*(C38-F23)/10000),IF(C38<=F36,INT((F38*(C38-F35)/10000+F39)*(C38-F35)/10000+F40),IF(C38<F37,INT(C38*F31-F43),INT(C38*F32-F44)))))*C23 ->  | F39: 2,397 | I39: 1975 | J39: 2040 | K39: 36 | L39: 0 | M39: 0
A40: MST5-6 | B40: X | C40: =MIN(F21,C38)*1.25 ->  | F40: 950.96
B41: ST1 | C41: =IF(C40<=F23,0,IF(C40<=F35,INT((F41*(C40-F23)/10000+F42)*(C40-F23)/10000),IF(C40<=F36,INT((F38*(C40-F35)/10000+F39)*(C40-F35)/10000+F40),IF(C40<=F37,INT(C40*F31-F43),INT(C40*F32-F44))))) ->  | F41: 995.21
B42: X | C42: =MIN(F21,C38)*0.75 ->  | F42: 1,400
B43: ST2 | C43: =IF(C42<=F23,0,IF(C42<=F35,INT((F41*(C42-F23)/10000+F42)*(C42-F23)/10000),IF(C42<F36,INT((F38*(C42-F35)/10000+F39)*(C42-F35)/10000+F40),IF(C42<F37,INT(C42*F31-F43),INT(C42*F32-F44))))) ->  | F43: 9,136.63
B44: DIFF | C44: =(C41-C43)*2 ->  | F44: 17,374.99
B45: MIST | C45: =ROUNDDOWN(MIN(C38,F21)*0.14,0) -> 
B46: ST | C46: =MAX(C44,C45) -> 
B47: ST | C47: =IF(C38>F22,(F22 - F21)*F31 + C46,ROUNDDOWN(MAX(C38-F21,0)*F31+C46,0)) -> 
B48: VERGL | C48: =IF(AND(C38>F20,C38<=F21),C46,0) -> 
B49: ST | C49: =ROUNDDOWN(F20*0.14,0) -> 1,573
B50: ST | C50: =MIN(ROUNDDOWN(MAX(C38-F20,0)*F31+C49,0),C47) -> 
B51: MIT REICHST | C51: =ROUNDDOWN(MAX(C38-F22,0)*F32+C50,0) -> 
B52: LSTJAHR | C52: =ROUNDDOWN(IF(C6<5,C39,C51)*C12,0) -> 
B53: JW | C53: =C52*100 -> 
A54: MLSTJAHR | B54: LSTLZZ | C54: =IF(C3=1,C53,IF(C3=2,ROUNDDOWN(C53/12,0),IF(C3=3,ROUNDDOWN((C53*7)/360,0),ROUNDDOWN(C53/360,0)))) -> 
B55: ZTABFB | C55: =C27+C28 -> 1,036
B56: ZVE | C56: =C20-C36-C55 -> 
B57: ZVE, X | C57: =IF(C56<36,0,ROUNDDOWN(C56/C23,0)) -> 
B58: ST | C58: =IF(C57<=F23,0,IF(C57<=F35,INT((F41*(C57-F23)/10000+F42)*(C57-F23)/10000),IF(C57<=F36,INT((F38*(C57-F35)/10000+F39)*(C57-F35)/10000+F40),IF(C57<F37,INT(C57*F31-F43),INT(C57*F32-F44)))))*C23 -> 
B59: JBMG | C59: =IF(C2>0,ROUNDDOWN(C58*C12,0),C52) -> 
A60: MSOLZ | B60: SOLZFREI | C60: =(F24)*C23 -> 16956
B61: SOLZJ | C61: =ROUNDDOWN((C59*F33)/100,2) -> 
B62: SOLZMIN | C62: =((C59-C60)*F34)/100 -> 
B63: SOLZJ | C63: =MIN(C62,C61) -> 
B64: JW | C64: =C63*100 -> 
A65: SOLZ | B65: ANTEIL1 | C65: =ROUNDDOWN(IF(C3=1,C64,IF(C3=2,C64/12,IF(C3=3,(C64*7)/360,C64/360))),0) -> 
B66: SOLZLZZ | C66: =IF(C59>C60,C65,0) -> 
B67: JW | C67: =C59*100 -> 
A68: BK | B68: BK | C68: =ROUNDDOWN(IF(C3=1,C67,IF(C3=2,C67/12,IF(C3=3,(C67*7)/360,C67/360))),0) -> 
A69: FAKTOR LZZ | B69: FLZZ | C69: =IF(C3=1,12,IF(C3=2,1,IF(C3=3,84/360,12/360))) -> 12.00000000

Sheet LSTBerechnung2020 (hidden)
A1: LST | B1: 2020 | E1: ="SOZ-VS-BEITRAGSSÄTZE "&BearbJahr -> SOZ-VS-BEITRAGSSÄTZE 2020
A2: MPARA | B2: ZKF | C2: =IF(Berechnung!P11>4,0,Berechnung!P14) -> 0 | E2: Bezeichnung | F2: SATZ | G2: Berechnet
B3: LZZ | C3: =Berechnung!P9 -> 1 | E3: KVSATZ | F3: 14.600% | G3: =F3/2+Berechnung!P17/200 ->  | H3: Mit Zusatzbeitrag
B4: KRV | C4: =Berechnung!P13 -> 0 | E4: KV_Zusatz | F4: =Berechnung!P17/100 ->  | G4: =F4/2+0.07 -> 
B5: ZRE4J | C5: =ROUNDDOWN(IF(C3=1,Berechnung!H8*100,IF(C3=2,(Berechnung!H8*100)*12,IF(C3=3,((Berechnung!H8*100)*360)/7,(Berechnung!H8*100)*360))),2) ->  | E5: RV_Satz | F5: 18.60% | G5: =F5/2 -> 9.300%
B6: STKL | C6: =+Berechnung!P11 -> 1 | E6: AV_Satz | F6: 2.40% | G6: =F6/2 -> 1.200%
B7: JLHINZU | C7: =IF(C6=6,0,Berechnung!P23*100) -> 0 | E7: PV_Satz | F7: 3.05% | G7: =IF(AND(Berechnung!P19=1,Berechnung!P21=1),F8+F9,IF(Berechnung!P21=1,F8,IF(AND(Berechnung!P14=0,Berechnung!P19=1),F7/2+F9,F7/2))) -> 1.525% | H7: ohne / mit Kind
B8: JLFREIB | C8: =Berechnung!P24*100 -> 0 | E8: PV_Satz Sachsen | F8: 2.025%
B9: BBGRV | C9: =IF(Berechnung!P20=0,F15,F16) -> 82,800 | E9: ZUSATZ Kinderlos | F9: 0.250%
B10: PKV | C10: =IF(Berechnung!H16>20,MAX($C$31,ROUNDDOWN(Berechnung!H16*12,2)-IF(Berechnung!P17=1,IF(Berechnung!P20=1,SUM(F11,F7,-F8),SUM(F11,F7/2))*MIN(C5/100,F17),0)),0) ->  | E10: ZUSATZ KV Durschn. | F10: 1.100%
B11: PV% | C11: =IF(AND(Berechnung!P19=1,Berechnung!P21=1),F8+F9,IF(Berechnung!P21=1,F8,IF(AND(Berechnung!P14=0,Berechnung!P19=1),F7/2+F9,F7/2))) -> 0.01525 | E11: KVSATZ AG | F11: 7.45% | G11: =F3/2+F7-G7+F10/2 -> 9.375% | H11: KV plus PV AG
B12: FAKTOR F | C12: =IF(OR(OR(Berechnung!P12=0,Berechnung!P12>1),Berechnung!P11<>4),1,Berechnung!P12) -> 1.00
A13: MRE4ALTE | B13: TAB4 | C13: =IF(Berechnung!P22=1,0.4,IF(Berechnung!P22=2,0.384,IF(Berechnung!P22=3,0.368,IF(Berechnung!P22=4,0.352,IF(Berechnung!P22=5,0.336,IF(Berechnung!P22=6,0.32,IF(Berechnung!P22=7,0.304,IF(Berechnung!P22=8,0.288,0)))))))) + IF(Berechnung!P22=9,0.272,IF(Berechnung!P22=10,0.256,IF(Berechnung!P22=11,0.24,IF(Berechnung!P22=12,0.224,IF(Berechnung!P22=13,0.208,IF(Berechnung!P22=14,0.192,IF(Berechnung!P22=15,0.176,0))))))) + IF(Berechnung!P22=16,0.16,0) -> 0 | E13: BMF - PAP - ANGABEN
B14: TAB5 | C14: =IF(Berechnung!P22=1,190000,IF(Berechnung!P22=2,182400,IF(Berechnung!P22=3,174800,IF(Berechnung!P22=4,167200,IF(Berechnung!P22=5,159600,IF(Berechnung!P22=6,152000,IF(Berechnung!P22=7,144400,IF(Berechnung!P22=8,136800,0))))))))+IF(Berechnung!P22=9,129200,IF(Berechnung!P22=10,121600,IF(Berechnung!P22=11,114000,IF(Berechnung!P22=12,106400,IF(Berechnung!P22=13,98800,IF(Berechnung!P22=14,91200,IF(Berechnung!P22=15,83600,0)))))))+IF(Berechnung!P22=16,76000,0) -> 0 | E14: Name | F14: WERT | G14: Bereich
B15: ALTEANTEIL | C15: =C14 -> 0 | E15: BBGRV | F15: 82,800 | G15: MPARA
B16: ALTE | C16: =IF(Berechnung!P22=0,0,IF((C5*C13)>C15,C15,C5*C13)) -> 0 | E16: BBGRV | F16: 77,400
B17: ZRE4 | C17: =C5-C8+C7-C16 ->  | E17: BBGKVPV | F17: 56,250
B18: ZRE4VP | C18: =C5 ->  | E18: KVSATZAG | F18: 0.07450
E19: TBSVORV | F19: 0.80
A20: MRE4 | B20: ZRE4 | C20: =C17/100 ->  | E20: W1STKL5 | F20: 10,898
B21: ZRE4VP | C21: =C18/100 ->  | E21: W2STKL5 | F21: 28,526
E22: W3STKL5 | F22: 216,400
A23: MZTABFB | B23: KZTAB | C23: =IF(C6=3,2,1) -> 1 | E23: GFB | F23: 9,408
B24: ANP | C24: =F25 -> 1,000 | E24: SOLZFREI | F24: 972.00
B25: EFA | C25: =IF(C6=2,F26,0) -> 0 | E25: ANP | F25: 1,000 | G25: MZTABFB
B26: SAP | C26: =IF(C6>5,0,F27) -> 36 | E26: EFA | F26: 1,908
B27: KFB | C27: =IF(C6<4,C2*F28,IF(C6=4,C2*F28/2,0)) -> 0 | E27: SAP | F27: 36
B28: ZTABFB | C28: =IF(C6=6,0,C24+C25+C26) -> 1,036 | E28: KFB | F28: 7,812
A29: UPEVP | B29: ZRE4VP | C29: =MIN(C9,C21) ->  | E29: VHB / VSP2 | F29: 1,900 | G29: UPEVP
B30: VSP1 | C30: =IF(C4=1,0,ROUNDDOWN(F19*C29*G5,2)) ->  | E30: VHB / VSP2 | F30: 3,000
B31: VHB | C31: =IF(C23=1,F29,F30) -> 1,900.00 | F31: 0.42 | G31: MST5-6
B32: VSP2 | C32: =MIN(C31,ROUNDDOWN(0.12*C29,2)) ->  | F32: 0.45
B33: =IF(Berechnung!P16=0,"KVSatz=0",(Berechnung!P16 + Berechnung!P17)/2 & " % + PV") ->  | C33: =IF(Berechnung!P16=0,0,G4+C11) ->  | E33: SOLI | F33: 5.50 | G33: MSOLZ
B34: KV | C34: =IF(C10>0,IF(C6=6,0,C10),ROUNDDOWN(MIN(C21,F17)*C33*100,0)/100) -> 
B35: KV>VHB? | C35: =IF(C34>C31,C34,C32) ->  | F35: 14,532 | G35: UPTAB19
B36: VSPN | C36: =ROUNDUP(C30+C35,0) ->  | F36: 57,051
A37: UMVSP | B37: ZVE | C37: =ROUNDDOWN(C20-C28-C36,0) ->  | F37: 270,501
B38: ZZX | C38: =MAX(0,ROUNDDOWN(C37/C23,0)) ->  | F38: 212.02
A39: UPTAB16 | B39: ST | C39: =IF(C38<=F23,0,IF(C38<=F35,INT((F41*(C38-F23)/10000+F42)*(C38-F23)/10000),IF(C38<=F36,INT((F38*(C38-F35)/10000+F39)*(C38-F35)/10000+F40),IF(C38<F37,INT(C38*F31-F43),INT(C38*F32-F44)))))*C23 ->  | F39: 2,397
A40: MST5-6 | B40: X | C40: =MIN(F21,C38)*1.25 ->  | F40: 972.79
B41: ST1 | C41: =IF(C40<=F23,0,IF(C40<=F35,INT((F41*(C40-F23)/10000+F42)*(C40-F23)/10000),IF(C40<=F36,INT((F38*(C40-F35)/10000+F39)*(C40-F35)/10000+F40),IF(C40<=F37,INT(C40*F31-F43),INT(C40*F32-F44))))) ->  | F41: 972.87
B42: X | C42: =MIN(F21,C38)*0.75 ->  | F42: 1,400
B43: ST2 | C43: =IF(C42<=F23,0,IF(C42<=F35,INT((F41*(C42-F23)/10000+F42)*(C42-F23)/10000),IF(C42<F36,INT((F38*(C42-F35)/10000+F39)*(C42-F35)/10000+F40),IF(C42<F37,INT(C42*F31-F43),INT(C42*F32-F44))))) ->  | F43: 8,963.74
B44: DIFF | C44: =(C41-C43)*2 ->  | F44: 17,078.74
B45: MIST | C45: =ROUNDDOWN(MIN(C38,F21)*0.14,0) -> 
B46: ST | C46: =MAX(C44,C45) -> 
B47: ST | C47: =IF(C38>F22,(F22 - F21)*F31 + C46,ROUNDDOWN(MAX(C38-F21,0)*F31+C46,0)) -> 
B48: VERGL | C48: =IF(AND(C38>F20,C38<=F21),C46,0) -> 
B49: ST | C49: =ROUNDDOWN(F20*0.14,0) -> 1,525
B50: ST | C50: =MIN(ROUNDDOWN(MAX(C38-F20,0)*F31+C49,0),C47) -> 
B51: MIT REICHST | C51: =ROUNDDOWN(MAX(C38-F22,0)*F32+C50,0) -> 
B52: LSTJAHR | C52: =ROUNDDOWN(IF(C6<5,C39,C51)*C12,0) -> 
B53: JW | C53: =C52*100 -> 
A54: MLSTJAHR | B54: LSTLZZ | C54: =IF(C3=1,C53,IF(C3=2,ROUNDDOWN(C53/12,0),IF(C3=3,ROUNDDOWN((C53*7)/360,0),ROUNDDOWN(C53/360,0)))) -> 
B55: ZTABFB | C55: =C27+C28 -> 1,036
B56: ZVE | C56: =C20-C36-C55 -> 
B57: ZVE, X | C57: =IF(C56<36,0,ROUNDDOWN(C56/C23,0)) -> 
B58: ST | C58: =IF(C57<=F23,0,IF(C57<=F35,INT((F41*(C57-F23)/10000+F42)*(C57-F23)/10000),IF(C57<=F36,INT((F38*(C57-F35)/10000+F39)*(C57-F35)/10000+F40),IF(C57<F37,INT(C57*F31-F43),INT(C57*F32-F44)))))*C23 -> 
B59: JBMG | C59: =IF(C2>0,ROUNDDOWN(C58*C12,0),C52) -> 
A60: MSOLZ | B60: SOLZFREI | C60: =(F24)*C23 -> 972
B61: SOLZJ | C61: =ROUNDDOWN((C59*5.5)/100,2) -> 
B62: SOLZMIN | C62: =((C59-C60)*20)/100 -> 
B63: SOLZJ | C63: =MIN(C62,C61) -> 
B64: JW | C64: =C63*100 -> 
A65: SOLZ | B65: ANTEIL1 | C65: =ROUNDDOWN(IF(C3=1,C64,IF(C3=2,C64/12,IF(C3=3,(C64*7)/360,C64/360))),0) -> 
B66: SOLZLZZ | C66: =IF(C59>C60,C65,0) -> 
B67: JW | C67: =C59*100 -> 
A68: BK | B68: BK | C68: =ROUNDDOWN(IF(C3=1,C67,IF(C3=2,C67/12,IF(C3=3,(C67*7)/360,C67/360))),0) -> 
A69: FAKTOR LZZ | B69: FLZZ | C69: =IF(C3=1,12,IF(C3=2,1,IF(C3=3,84/360,12/360))) -> 12.00000000

Sheet LSTBerechnung2015 (hidden)
A2: LST 2015 | H2: LST 2015
A3: ALTER1 | B3: =Berechnung!R22 -> 0.00 | D3: Werte der Zellen B3-B15 und B40 werden von der Eingabe-Mappe geholt | H3: ALTER1 | I3: 0.00 | K3: Werte der Zellen B3-B15 und B40 werden von der Eingabe-Mappe geholt
A4: ZKF | B4: =IF(Berechnung!R11>4,0,Berechnung!R14) -> 0 | D4: Bei Übernahme in eigenes Programm enstprechend anpassen | H4: ZKF | I4: 0 | K4: Bei Übernahme in eigenes Programm enstprechend anpassen
A5: LZZ | B5: =Berechnung!R9 -> 1 | H5: LZZ | I5: 2
A6: KRV | B6: =Berechnung!R13 -> 0 | H6: KRV | I6: 0
A7: ZRE4J | B7: =ROUNDDOWN(IF(B5=1,Berechnung!R8*100,IF(B5=2,(Berechnung!R8*100)*12,IF(B5=3,((Berechnung!R8*100)*360)/7,(Berechnung!R8*100)*360))),2) ->  | H7: ZRE4J | I7: 4200000
A8: STKL | B8: =Berechnung!R11 -> 1 | H8: STKL | I8: 1
A9: JLFREIB | B9: =Berechnung!R24*100 -> 0 | H9: JLFREIB | I9: 0
A10: JLHINZU | B10: =IF(B8=6,0,Berechnung!R23*100) -> 0 | H10: JLHINZU | I10: 0
A11: RV-BEMES | B11: =IF(Berechnung!R20=0,72600,62400) -> 72600 | D11: RV-Bemessungsgrenzen Ost/West | H11: BBGRV | I11: 72600
A12: PKV | B12: =IF(Berechnung!R17>20,ROUNDDOWN(IF(B5=1,Berechnung!R17*100,IF(B5=2,(Berechnung!R17*100)*12,IF(B5=3,((Berechnung!R17*100)*360)/7,(Berechnung!R17*100)*360)))/100,2),0) ->  | H12: PKV | I12: 0.00
A13: PV% | B13: =IF(Berechnung!R21=0,0.01175,0.01675)+IF(AND(Berechnung!R19=1,Berechnung!R14=0),0.0025,0) -> 0.01175 | H13: PV% | I13: 0.01175
A14: FAKTOR F | B14: =IF(OR(OR(Berechnung!R12=0,Berechnung!R12>1),Berechnung!R11<>4),1,Berechnung!R12) -> 1.00 | H14: FAKTOR F | I14: 1.00
A15: MRE4ALTE | H15: MRE4ALTE
A16: TAB4 | B16: =IF(B3=1,0.4,IF(B3=2,0.384,IF(B3=3,0.368,IF(B3=4,0.352,IF(B3=5,0.336,IF(B3=6,0.32,IF(B3=7,0.304,IF(B3=8,0.288,0)))))))) + IF(B3=9,0.272,IF(B3=10,0.256,IF(B3=11,0.24,0))) -> 0.000 | H16: TAB4 | I16: =IF(I3=1,0.4,IF(I3=2,0.384,IF(I3=3,0.368,IF(I3=4,0.352,IF(I3=5,0.336,IF(I3=6,0.32,IF(I3=7,0.304,IF(I3=8,0.288,0)))))))) + IF(I3=9,0.272,IF(I3=10,0.256,IF(I3=11,0.24,0))) -> 0.000
A17: TAB5 | B17: =IF(B3=1,190000,IF(B3=2,182400,IF(B3=3,174800,IF(B3=4,167200,IF(B3=5,159600,IF(B3=6,152000,IF(B3=7,144400,IF(B3=8,136800,0))))))))+IF(B3=9,129200,IF(B3=10,121600,IF(B3=11,114000,0))) -> 0 | H17: TAB5 | I17: =IF(I3=1,190000,IF(I3=2,182400,IF(I3=3,174800,IF(I3=4,167200,IF(I3=5,159600,IF(I3=6,152000,IF(I3=7,144400,IF(I3=8,136800,0))))))))+IF(I3=9,129200,IF(I3=10,121600,IF(I3=11,114000,0))) -> 0
A18: ALTEANTEIL | B18: =B17 -> 0 | H18: ALTEANTEIL | I18: =I17 -> 0
A19: ALTE | B19: =IF(B3=0,0,IF((B7*B16)>B18,B18,B7*B16)) -> 0 | H19: ALTE | I19: =IF(I3=0,0,IF((I7*I16)>I18,I18,I7*I16)) -> 0
A20: ZRE4 | B20: =B7-B9+B10-B19 ->  | F20: =Berechnung!R17 ->  | H20: ZRE4 | I20: =I7-I9+I10-I19 -> 4200000
A21: ZRE4VP | B21: =B7 ->  | H21: ZRE4VP | I21: =I7 -> 4200000
A23: MRE4 | H23: MRE4
A24: ZRE4 | B24: =B20/100 ->  | H24: ZRE4 | I24: =I20/100 -> 42000.00
A25: ZRE4VP | B25: =B21/100 ->  | H25: ZRE4VP | I25: =I21/100 -> 42000.00
A27: MZTABFB | H27: MZTABFB
A28: KZTAB | B28: =IF(B8=3,2,1) -> 1 | H28: KZTAB | I28: =IF(I8=3,2,1) -> 1
A29: ANP | B29: 1000 | H29: ANP | I29: 1000
A30: EFA | B30: =IF(B8=2,1308,0) -> 0 | H30: EFA | I30: =IF(I8=2,1308,0) -> 0
A31: SAP | B31: =IF(B8>5,0,36) -> 36 | H31: SAP | I31: =IF(I8>5,0,36) -> 36
A32: KFB | B32: =IF(B8<4,B4*7008,IF(B8=4,B4*3504,0)) -> 0 | H32: KFB | I32: =IF(I8<4,I4*7008,IF(I8=4,I4*3504,0)) -> 0
A33: ZTABFB | B33: =IF(B8=6,0,B29+B30+B31) -> 1036 | H33: ZTABFB | I33: =IF(I8=6,0,I29+I30+I31) -> 1036
A35: UPEVP | H35: UPEVP
A36: ZRE4VP | B36: =MIN(B11,B25) ->  | H36: ZRE4VP | I36: =MIN(I11,I25) -> 42000.00
A37: VSP1 | B37: =IF(B6=1,0,ROUNDDOWN(0.6*B36*0.0935,2)) ->  | H37: VSP1 | I37: =IF(I6=1,0,ROUNDDOWN(0.6*I36*0.0935,2)) -> 2356.20
A38: VHB | B38: =IF(B28=1,1900,3000) -> 1900.00 | H38: VHB | I38: =IF(I28=1,1900,3000) -> 1900.00
A39: VSP2 | B39: =MIN(B38,ROUNDDOWN(0.12*B36,2)) ->  | H39: VSP2 | I39: =MIN(I38,ROUNDDOWN(0.12*I36,2)) -> 1900.00
A40: =IF(Berechnung!R16=0,"KVSatz=0",7 + Berechnung!R17 & " % + PV") ->  | B40: =IF(Berechnung!R16=0,0,0.07+Berechnung!R17/100+B13) ->  | D40: =IF(B40=0,"","Vorsorgepauschale berücksichtigt: 7,0% (=reduzierter Beitragssatz) + Zusatzbeitrag: " & Berechnung!R17 & "% + " & B13 & " (PV)") ->  | H40: 7,9 % + PV | I40: 0.09075
A41: KV | B41: =IF(B12>0,B12,ROUNDDOWN(MIN(B25,49500)*B40*100,0)/100) ->  | H41: KV | I41: =IF(I12>0,I12,ROUNDDOWN(MIN(I25,49500)*I40*100,0)/100) -> 3811.50
A42: KV>VHB? | B42: =IF(B41>B39,B41,B39) ->  | H42: KV>VHB? | I42: =IF(I41>I39,I41,I39) -> 3811.50
A43: VSPN | B43: =ROUNDUP(B37+B42,0) ->  | H43: VSPN | I43: =ROUNDUP(I37+I42,0) -> 6168.00
A45: UMVSP | H45: UMVSP
A46: ZVE | B46: =ROUNDDOWN(B24-B33-B43,0) ->  | H46: ZVE | I46: =ROUNDDOWN(I24-I33-I43,0) -> 34796
A47: ZZX | B47: =MAX(0,ROUNDDOWN(B46/B28,0)) ->  | H47: ZZX | I47: =MAX(0,ROUNDDOWN(I46/I28,0)) -> 34796
A49: UPTAB13 | H49: UPTAB14
A50: ST | B50: =IF(B47<=8354,0,IF(B47<=13469,INT((974.58*(B47-8354)/10000+1400)*(B47-8354)/10000),IF(B47<=52881,INT((228.74*(B47-13469)/10000+2397)*(B47-13469)/10000+971),IF(B47<=250730,INT(B47*0.42-8239),INT(B47*0.45-15761)))))*B28 ->  | H50: ST | I50: =IF(I47<=8354,0,IF(I47<=13469,INT((974.58*(I47-8354)/10000+1400)*(I47-8354)/10000),IF(I47<=52881,INT((228.74*(I47-13469)/10000+2397)*(I47-13469)/10000+971),IF(I47<=250730,INT(I47*0.42-8239),INT(I47*0.45-15761)))))*I28 -> 7123
A52: MST5-6 | H52: MST5-6
A54: X | B54: =MIN(26441,B47)*1.25 ->  | H54: X | I54: =MIN(26441,I47)*1.25 -> 33051
A55: ST1 | B55: =IF(B54<=8354,0,IF(B54<=13469,INT((974.58*(B54-8354)/10000+1400)*(B54-8354)/10000),IF(B54<=52881,INT((228.74*(B54-13469)/10000+2397)*(B54-13469)/10000+971),IF(B54<=250730,INT(B54*0.42-8239),INT(B54*0.45-15761))))) ->  | H55: ST1 | I55: =IF(I54<=8354,0,IF(I54<=13469,INT((974.58*(I54-8354)/10000+1400)*(I54-8354)/10000),IF(I54<=52881,INT((228.74*(I54-13469)/10000+2397)*(I54-13469)/10000+971),IF(I54<=250730,INT(I54*0.42-8239),INT(I54*0.45-15761))))) -> 6542
A56: X | B56: =MIN(26441,B47)*0.75 ->  | H56: X | I56: =MIN(26441,I47)*0.75 -> 19831
A57: ST2 | B57: =IF(B56<=8354,0,IF(B56<=13469,INT((974.58*(B56-8354)/10000+1400)*(B56-8354)/10000),IF(B56<=52881,INT((228.74*(B56-13469)/10000+2397)*(B56-13469)/10000+971),IF(B56<=250730,INT(B56*0.42-8239),INT(B56*0.45-15761))))) ->  | H57: ST2 | I57: =IF(I56<=8354,0,IF(I56<=13469,INT((974.58*(I56-8354)/10000+1400)*(I56-8354)/10000),IF(I56<=52881,INT((228.74*(I56-13469)/10000+2397)*(I56-13469)/10000+971),IF(I56<=250730,INT(I56*0.42-8239),INT(I56*0.45-15761))))) -> 2588
A58: DIFF | B58: =(B55-B57)*2 ->  | H58: DIFF | I58: =(I55-I57)*2 -> 7908
A59: MIST | B59: =ROUNDDOWN(MIN(B47,26441)*0.14,0) ->  | H59: MIST | I59: =ROUNDDOWN(MIN(I47,26441)*0.14,0) -> 3701
A60: ST | B60: =MAX(B58,B59) ->  | H60: ST | I60: =MAX(I58,I59) -> 7908
A61: ST | B61: =IF(B47>200584,(200584 - 26441)*0.42 + B60,ROUNDDOWN(MAX(B47-26441,0)*0.42+B60,0)) ->  | H61: ST | I61: =IF(I47>200584,(200584 - 26441)*0.42 + I60,ROUNDDOWN(MAX(I47-26441,0)*0.42+I60,0)) -> 11417
A62: VERGL | B62: =IF(AND(B47>9763,B47<=26441),B60,0) ->  | H62: VERGL | I62: =IF(AND(I47>9763,I47<=26441),I60,0) -> 0
A63: ST | B63: 1366 | D63: =9763*1.25=12.203 davon ST = 683* 2 = 1366 bzw. auch 9763 * 14% = 1366 | H63: ST | I63: 1366 | K63: =9763*1.25=12.203 davon ST = 683* 2 = 1366 bzw. auch 9763 * 14% = 1366
A64: ST | B64: =MIN(ROUNDDOWN(MAX(B47-9763,0)*0.42+B63,0),B61) ->  | H64: ST | I64: =MIN(ROUNDDOWN(MAX(I47-9763,0)*0.42+I63,0),I61) -> 11417
A65: MIT REICHST | B65: =ROUNDDOWN(MAX(B47-200584,0)*0.45+B64,0) ->  | H65: MIT REICHST | I65: =ROUNDDOWN(MAX(I47-200584,0)*0.45+I64,0) -> 11417
A66: LSTJAHR | B66: =ROUNDDOWN(IF(B8<5,B50,B65)*B14,0) ->  | D66: Ehegattenfaktorenverfahren | H66: LSTJAHR | I66: =ROUNDDOWN(IF(I8<5,I50,I65)*I14,0) -> 7123 | K66: Ehegattenfaktorenverfahren
A67: JW | B67: =B66*100 ->  | D67: Zell B67 mit Faktor multiplizieren (für Lohnsteuer) | H67: JW | I67: =I66*100 -> 712300 | K67: Zell B67 mit Faktor multiplizieren (für Lohnsteuer)
D68: Nur wenn StKl 4 gewählt und Hinzurechnungsbetrag=0! | K68: Nur wenn StKl 4 gewählt und Hinzurechnungsbetrag=0!
A69: MLSTJAHR | H69: MLSTJAHR
A71: LSTLZZ | B71: =IF(B5=1,B67,IF(B5=2,ROUNDDOWN(B67/12,0),IF(B5=3,ROUNDDOWN((B67*7)/360,0),ROUNDDOWN(B67/360,0)))) ->  | H71: LSTLZZ | I71: =IF(I5=1,I67,IF(I5=2,ROUNDDOWN(I67/12,0),IF(I5=3,ROUNDDOWN((I67*7)/360,0),ROUNDDOWN(I67/360,0)))) -> 59358
A72: ZTABFB | B72: =B32+B33 -> 1036 | H72: ZTABFB | I72: =I32+I33 -> 1036
A73: ZVE | B73: =B24-B43-B72 ->  | H73: ZVE | I73: =I24-I43-I72 -> 34796
A74: ZVE, X | B74: =IF(B73<36,0,ROUNDDOWN(B73/B28,0)) ->  | H74: ZVE, X | I74: =IF(I73<36,0,ROUNDDOWN(I73/I28,0)) -> 34796
A75: ST | B75: =IF(B74<=8354,0,IF(B74<=13469,INT((974.58*(B74-8354)/10000+1400)*(B74-8354)/10000),IF(B74<=52881,INT((228.74*(B74-13469)/10000+2397)*(B74-13469)/10000+971),IF(B74<=250730,INT(B74*0.42-8239),INT(B74*0.45-15761)))))*B28 ->  | D75: Ehegattenfaktorenverfahren | H75: ST | I75: =IF(I74<=8354,0,IF(I74<=13469,INT((974.58*(I74-8354)/10000+1400)*(I74-8354)/10000),IF(I74<=52881,INT((228.74*(I74-13469)/10000+2397)*(I74-13469)/10000+971),IF(I74<=250730,INT(I74*0.42-8239),INT(I74*0.45-15761)))))*I28 -> 7123 | K75: Ehegattenfaktorenverfahren
A76: JBMG | B76: =IF(B4>0,ROUNDDOWN(B75*B14,0),B66) ->  | D76: Zell B76 mit Faktor multiplizieren (für Soli und Kirchensteuer) | H76: JBMG | I76: =IF(I4>0,ROUNDDOWN(I75*I14,0),I66) -> 7123 | K76: Zell B76 mit Faktor multiplizieren (für Soli und Kirchensteuer)
A78: MSOLZ | H78: MSOLZ
A79: SOLZFREI | B79: =972*B28 -> 972 | H79: SOLZFREI | I79: =972*I28 -> 972
A80: SOLZJ | B80: =ROUNDDOWN((B76*5.5)/100,2) ->  | H80: SOLZJ | I80: =ROUNDDOWN((I76*5.5)/100,2) -> 391.76
A81: SOLZMIN | B81: =((B76-B79)*20)/100 ->  | H81: SOLZMIN | I81: =((I76-I79)*20)/100 -> 1230.20
A82: SOLZJ | B82: =MIN(B81,B80) ->  | H82: SOLZJ | I82: =MIN(I81,I80) -> 391.76
A83: JW | B83: =B82*100 ->  | H83: JW | I83: =I82*100 -> 39176
A85: SOLZ | H85: SOLZ
A86: ANTEIL1 | B86: =ROUNDDOWN(IF(B5=1,B83,IF(B5=2,B83/12,IF(B5=3,(B83*7)/360,B83/360))),0) ->  | H86: ANTEIL1 | I86: =ROUNDDOWN(IF(I5=1,I83,IF(I5=2,I83/12,IF(I5=3,(I83*7)/360,I83/360))),0) -> 3264
A87: SOLZLZZ | B87: =IF(B76>B79,B86,0) ->  | H87: SOLZLZZ | I87: =IF(I76>I79,I86,0) -> 3264
A88: JW | B88: =B76*100 ->  | H88: JW | I88: =I76*100 -> 712300
A90: BK | H90: BK
A91: ANTEIL1 | B91: =ROUNDDOWN(IF(B5=1,B88,IF(B5=2,B88/12,IF(B5=3,(B88*7)/360,B88/360))),0) ->  | H91: ANTEIL1 | I91: =ROUNDDOWN(IF(I5=1,I88,IF(I5=2,I88/12,IF(I5=3,(I88*7)/360,I88/360))),0) -> 59358
A92: BK | B92: =B91 ->  | H92: BK | I92: =I91 -> 59358

Sheet LSTBerechnung2014 (hidden)
A2: LST 2014 | I2: LST 2014
A3: ALTER1 | B3: =Berechnung!R22 -> 0.00 | D3: Werte der Zellen B3-B15 und B40 werden von der Eingabe-Mappe geholt | I3: ALTER1 | J3: 0.00 | L3: =+B3-J3 -> 0.00
A4: ZKF | B4: =IF(Berechnung!R11>4,0,Berechnung!R14) -> 0 | D4: Bei Übernahme in eigenes Programm enstprechend anpassen | I4: ZKF | J4: 0 | L4: =+B4-J4 -> 0.00
A5: LZZ | B5: =Berechnung!R9 -> 1 | I5: LZZ | J5: 2 | L5: -1.00
A6: KRV | B6: =Berechnung!R13 -> 0 | I6: KRV | J6: 1 | L6: -1.00
A7: ZRE4J | B7: =ROUNDDOWN(IF(B5=1,Berechnung!R8*100,IF(B5=2,(Berechnung!R8*100)*12,IF(B5=3,((Berechnung!R8*100)*360)/7,(Berechnung!R8*100)*360))),2) ->  | I7: ZRE4J | J7: 2400000
A8: STKL | B8: =Berechnung!R11 -> 1 | I8: STKL | J8: 1 | L8: 0.00
A9: JLFREIB | B9: =Berechnung!R24*100 -> 0 | I9: JLFREIB | J9: 0 | L9: 0.00
A10: JLHINZU | B10: =IF(B8=6,0,Berechnung!R23*100) -> 0 | I10: JLHINZU | J10: 0 | L10: 0.00
A11: RV-BEMES | B11: =IF(Berechnung!R20=0,71400,60000) -> 71400 | D11: RV-Bemessungsgrenzen Ost/West | I11: RV-BEMES | J11: 71400 | L11: 0.00
A12: PKV | B12: =IF(Berechnung!R17>20,ROUNDDOWN(IF(B5=1,Berechnung!R17*100,IF(B5=2,(Berechnung!R17*100)*12,IF(B5=3,((Berechnung!R17*100)*360)/7,(Berechnung!R17*100)*360)))/100,2),0) ->  | I12: PKV | J12: 0.00
A13: PV% | B13: =IF(Berechnung!R21=0,0.01025,0.01525)+IF(AND(Berechnung!R19=1,Berechnung!R14=0),0.0025,0) -> 0.01025 | I13: PV% | J13: 0.01275 | L13: -0.00
A14: FAKTOR F | B14: =IF(OR(OR(Berechnung!R12=0,Berechnung!R12>1),Berechnung!R11<>4),1,Berechnung!R12) -> 1.00 | I14: FAKTOR F | J14: 1.00 | L14: 0.00
A15: MRE4ALTE | I15: MRE4ALTE | L15: 0.00
A16: TAB4 | B16: =IF(B3=1,0.4,IF(B3=2,0.384,IF(B3=3,0.368,IF(B3=4,0.352,IF(B3=5,0.336,IF(B3=6,0.32,IF(B3=7,0.304,IF(B3=8,0.288,0)))))))) + IF(B3=9,0.272,IF(B3=10,0.276,0)) -> 0.000 | I16: TAB4 | J16: 0.000 | L16: 0.00
A17: TAB5 | B17: =IF(B3=1,190000,IF(B3=2,182400,IF(B3=3,174800,IF(B3=4,167200,IF(B3=5,159600,IF(B3=6,152000,IF(B3=7,144400,IF(B3=8,136800,0))))))))+IF(B3=9,129200,IF(B3=10,121600,0)) -> 0 | I17: TAB5 | J17: 0 | L17: 0.00
A18: ALTEANTEIL | B18: =B17 -> 0 | I18: ALTEANTEIL | J18: 0 | L18: 0.00
A19: ALTE | B19: =IF(B3=0,0,IF((B7*B16)>B18,B18,B7*B16)) -> 0 | I19: ALTE | J19: 0 | L19: 0.00
A20: ZRE4 | B20: =B7-B9+B10-B19 ->  | F20: =Berechnung!R17 ->  | I20: ZRE4 | J20: 2400000
A21: ZRE4VP | B21: =B7 ->  | I21: ZRE4VP | J21: 2400000
L22: 0.00
A23: MRE4 | I23: MRE4 | L23: 0.00
A24: ZRE4 | B24: =B20/100 ->  | I24: ZRE4 | J24: 24000.00
A25: ZRE4VP | B25: =B21/100 ->  | I25: ZRE4VP | J25: 24000.00
L26: 0.00
A27: MZTABFB | I27: MZTABFB | L27: 0.00
A28: KZTAB | B28: =IF(B8=3,2,1) -> 1 | I28: KZTAB | J28: 1 | L28: 0.00
A29: ANP | B29: 1000 | I29: ANP | J29: 1000 | L29: 0.00
A30: EFA | B30: =IF(B8=2,1308,0) -> 0 | I30: EFA | J30: 0 | L30: 0.00
A31: SAP | B31: =IF(B8>5,0,36) -> 36 | I31: SAP | J31: 36 | L31: 0.00
A32: KFB | B32: =IF(B8<4,B4*7008,IF(B8=4,B4*3504,0)) -> 0 | I32: KFB | J32: 0 | L32: 0.00
A33: ZTABFB | B33: =IF(B8=6,0,B29+B30+B31) -> 1036 | I33: ZTABFB | J33: 1036 | L33: 0.00
L34: 0.00
A35: UPEVP | I35: UPEVP | L35: 0.00
A36: ZRE4VP | B36: =MIN(B11,B25) ->  | I36: ZRE4VP | J36: 24000.00
A37: VSP1 | B37: =IF(B6=1,0,ROUNDDOWN(0.56*B36*0.0945,2)) ->  | I37: VSP1 | J37: 0.00
A38: VHB | B38: =IF(B28=1,1900,3000) -> 1900.00 | I38: VHB | J38: 1900.00 | L38: 0.00
A39: VSP2 | B39: =MIN(B38,ROUNDDOWN(0.12*B36,2)) ->  | I39: VSP2 | J39: 1900.00
A40: =IF(Berechnung!R16=0,"KVSatz=0",7 + Berechnung!R17 & " % + PV") ->  | B40: =IF(Berechnung!R16=0,0,0.07+Berechnung!R17/100+B13) ->  | D40: =IF(B40=0,"","Vorsorgepauschale berücksichtigt: 7,0% (=reduzierter Beitragssatz) + Zusatzbeitrag: " & Berechnung!R17 & "% + " & B13 & " (PV)") ->  | I40: 7,9 % + PV | J40: 0.09175
A41: KV | B41: =IF(B12>0,B12,ROUNDDOWN(MIN(B25,48600)*B40*100,0)/100) ->  | I41: KV | J41: 2202.00
A42: KV>VHB? | B42: =IF(B41>B39,B41,B39) ->  | I42: KV>VHB? | J42: 2202.00
A43: VSPN | B43: =ROUNDUP(B37+B42,0) ->  | I43: VSPN | J43: 2202.00
L44: 0.00
A45: UMVSP | I45: UMVSP | L45: 0.00
A46: ZVE | B46: =ROUNDDOWN(B24-B33-B43,0) ->  | I46: ZVE | J46: 20762
A47: ZZX | B47: =MAX(0,ROUNDDOWN(B46/B28,0)) ->  | I47: ZZX | J47: 20762
L48: 0.00
A49: UPTAB13 | I49: UPTAB13 | L49: 0.00
A50: ST | B50: =IF(B47<=8354,0,IF(B47<=13469,INT((974.58*(B47-8354)/10000+1400)*(B47-8354)/10000),IF(B47<=52881,INT((228.74*(B47-13469)/10000+2397)*(B47-13469)/10000+971),IF(B47<=250730,INT(B47*0.42-8239),INT(B47*0.45-15761)))))*B28 ->  | I50: ST | J50: 2840
L51: 0.00
A52: MST5-6 | I52: MST5-6 | L52: 0.00
L53: 0.00
A54: X | B54: =MIN(26441,B47)*1.25 ->  | I54: X | J54: 25953
A55: ST1 | B55: =IF(B54<=8354,0,IF(B54<=13469,INT((974.58*(B54-8354)/10000+1400)*(B54-8354)/10000),IF(B54<=52881,INT((228.74*(B54-13469)/10000+2397)*(B54-13469)/10000+971),IF(B54<=250730,INT(B54*0.42-8239),INT(B54*0.45-15761))))) ->  | I55: ST1 | J55: 4319
A56: X | B56: =MIN(26441,B47)*0.75 ->  | I56: X | J56: 15572
A57: ST2 | B57: =IF(B56<=8354,0,IF(B56<=13469,INT((974.58*(B56-8354)/10000+1400)*(B56-8354)/10000),IF(B56<=52881,INT((228.74*(B56-13469)/10000+2397)*(B56-13469)/10000+971),IF(B56<=250730,INT(B56*0.42-8239),INT(B56*0.45-15761))))) ->  | I57: ST2 | J57: 1485
A58: DIFF | B58: =(B55-B57)*2 ->  | I58: DIFF | J58: 5668
A59: MIST | B59: =ROUNDDOWN(MIN(B47,26441)*0.14,0) ->  | I59: MIST | J59: 2906
A60: ST | B60: =MAX(B58,B59) ->  | I60: ST | J60: 5668
A61: ST | B61: =IF(B47>200584,(200584 - 26441)*0.42 + B60,ROUNDDOWN(MAX(B47-26441,0)*0.42+B60,0)) ->  | I61: ST | J61: 5668
A62: VERGL | B62: =IF(AND(B47>9763,B47<=26441),B60,0) ->  | I62: VERGL | J62: 5668
A63: ST | B63: 1366 | D63: =9763*1.25=12.203 davon ST = 683* 2 = 1366 bzw. auch 9763 * 14% = 1366 | I63: ST | J63: 1366 | L63: 0.00
A64: ST | B64: =MIN(ROUNDDOWN(MAX(B47-9763,0)*0.42+B63,0),B61) ->  | I64: ST | J64: 5668
A65: MIT REICHST | B65: =ROUNDDOWN(MAX(B47-200584,0)*0.45+B64,0) ->  | I65: MIT REICHST | J65: 5668
A66: LSTJAHR | B66: =ROUNDDOWN(IF(B8<5,B50,B65)*B14,0) ->  | D66: Ehegattenfaktorenverfahren | I66: LSTJAHR | J66: 2840
A67: JW | B67: =B66*100 ->  | D67: Zell B67 mit Faktor multiplizieren (für Lohnsteuer) | I67: JW | J67: 284000
D68: Nur wenn StKl 4 gewählt und Hinzurechnungsbetrag=0! | L68: =+B68-J68 -> 0.00
A69: MLSTJAHR | I69: MLSTJAHR | L69: 0.00
L70: 0.00
A71: LSTLZZ | B71: =IF(B5=1,B67,IF(B5=2,ROUNDDOWN(B67/12,0),IF(B5=3,ROUNDDOWN((B67*7)/360,0),ROUNDDOWN(B67/360,0)))) ->  | I71: LSTLZZ | J71: 23666
A72: ZTABFB | B72: =B32+B33 -> 1036 | I72: ZTABFB | J72: 1036 | L72: 0.00
A73: ZVE | B73: =B24-B43-B72 ->  | I73: ZVE | J73: 20762
A74: ZVE, X | B74: =IF(B73<36,0,ROUNDDOWN(B73/B28,0)) ->  | I74: ZVE, X | J74: 20762
A75: ST | B75: =IF(B74<=8354,0,IF(B74<=13469,INT((974.58*(B74-8354)/10000+1400)*(B74-8354)/10000),IF(B74<=52881,INT((228.74*(B74-13469)/10000+2397)*(B74-13469)/10000+971),IF(B74<=250730,INT(B74*0.42-8239),INT(B74*0.45-15761))))) ->  | D75: Ehegattenfaktorenverfahren | I75: ST | J75: 2840
A76: JBMG | B76: =IF(B4>0,ROUNDDOWN(B75*B14,0),B66) ->  | D76: Zell B76 mit Faktor multiplizieren (für Soli und Kirchensteuer) | I76: JBMG | J76: 2840
L77: 0.00
A78: MSOLZ | I78: MSOLZ | L78: 0.00
A79: SOLZFREI | B79: =972*B28 -> 972 | I79: SOLZFREI | J79: 972 | L79: 0.00
A80: SOLZJ | B80: =ROUNDDOWN((B76*5.5)/100,2) ->  | I80: SOLZJ | J80: 156.20
A81: SOLZMIN | B81: =((B76-B79)*20)/100 ->  | I81: SOLZMIN | J81: 373.60
A82: SOLZJ | B82: =MIN(B81,B80) ->  | I82: SOLZJ | J82: 156.20
A83: JW | B83: =B82*100 ->  | I83: JW | J83: 15620
L84: 0.00
A85: SOLZ | I85: SOLZ | L85: 0.00
A86: ANTEIL1 | B86: =ROUNDDOWN(IF(B5=1,B83,IF(B5=2,B83/12,IF(B5=3,(B83*7)/360,B83/360))),0) ->  | I86: ANTEIL1 | J86: 1301
A87: SOLZLZZ | B87: =IF(B76>B79,B86,0) ->  | I87: SOLZLZZ | J87: 1301
A88: JW | B88: =B76*100 ->  | I88: JW | J88: 284000
L89: 0.00
A90: BK | I90: BK | L90: 0.00
A91: ANTEIL1 | B91: =ROUNDDOWN(IF(B5=1,B88,IF(B5=2,B88/12,IF(B5=3,(B88*7)/360,B88/360))),0) ->  | I91: ANTEIL1 | J91: 23666
A92: BK | B92: =B91 ->  | I92: BK | J92: 23666

Sheet __Goal_Metadata (hidden)
A1: _KAW999934 | B1: J
A2: _KAW999929 | B2: bb6f94e9-3d72-4b2e-87b9-0e4507023c5a
